{"text_format":"1","workbook":"xlsx","n_sheets":10,"sheets":["Instrukcija","Suvestine","1","2","3","4","5","6","7","8"],"not_rendered":{"charts":0,"images":1,"macros":1,"external_links":0,"defined_names":8,"comments":0,"pivot_tables":0},"unopened":[],"bounds":{"document_bytes":16777216,"sheet_cells":100000,"rows_first":2000,"rows_last":500,"rows_between":2000,"halvings":0,"cell_chars":16384,"cell_head_chars":4096},"cells_cut":0,"cells_raw":0,"read":"whole","date_system":"1900"}

{"sheet":"Instrukcija","index":0,"n_rows":11,"n_cols":4,"rows_kept":11,"cut":false,"hidden":true,"merged":[[0,3,0,5],[5,1,5,5],[8,1,8,5],[10,1,10,5],[2,0,2,5],[4,1,4,5],[6,1,6,5],[7,1,7,5],[9,1,9,5]]}
[null,null,null,"Verslo plano priedas „Reikalingi ištekliai“\nNr. 1C"]
[]
["Pildymo instrukcija"]
[]
[1,"Šis verslo plano priedas Nr. 1A pildomas tik projekto veikloms, nurodytoms 2014–2020 metų Europos Sąjungos fondų investicijų veiksmų programos 1 prioriteto „Mokslinių tyrimų, eksperimentinės plėtros ir inovacijų skatinimas“ priemonės Nr. 01.2.1-LVPA-K-848 „SMART FDI“ projektų finansavimo sąlygų aprašo  (toliau – Aprašas) 10.3 punkte."]
[2,"Pildykite tik žalia spalva pažymėtus laukus."]
[3,"Nereikalingų eilučių, stulpelių netrinkite, esant poreikiui eilutes, stulpelius galite tik paslėpti (hide)."]
[4,"Kiekvienam pirmo lygio (kurio paraiškoje nurodytas numeris susideda iš trijų skaitmenų) fiziniam rodikliui, nurodytam paraiškos 6 dalyje „Projekto loginis pagrindimas“, pildykite atskirą lapą. Fizinio rodiklio pavadinimas ir numeris turi sutapti su paraiškoje nurodytais fizinių rodiklių pavadinimais ir numeriais. Jei projektas vykdomas kartu su partneriu(-iais), veikloms, kurios vykdomos kartu su partneriu(-iais) rekomenduojama atskirai numatyti pareiškėjui ir partneriui(-iams) tenkančius fizinius rodiklius.\nAtkreipiame dėmesį, kad vienam fiziniam rodikliui gali būti priskirta tik viena biudžeto išlaidų kategorija."]
[5,"Jei projektas vykdomas kartu su partneriu(-iais), rekomenduojama pareiškėjui ir partneriui(-iams) numatyti atskirus  pirmo lygio fizinius rodiklius."]
[6,"Kai užpildysite visas fizinių rodiklių išlaidas, kortelėje „Suvestinė“ paspauskite viršuje kairėje pusėje esantį mygtuką „Tvarkyti lentelę“, kad užsipildytų suminė informacija šioje kortelėje."]
[7,"Kartu su verslo planu turi būti pateiktas ir šis verslo plano priedas (popierinė ir elektroninė versijos). LVPA teikiamoje elektroninėje versijoje turi likti visos skaičiavimams naudotos formulės."]

{"sheet":"Suvestine","index":1,"n_rows":66,"n_cols":6,"rows_kept":66,"cut":false,"hidden":false,"merged":[[0,1,0,5],[55,0,55,1],[57,0,57,5],[65,0,65,1]]}
[null,"Veiklų, vykdomų pagal Aprašo 10.3 punktą, išlaidų suvestinė lentelė pagal fizinius rodiklius (lentelė užsipildo automatiškai)"]
[]
["Fizinio rodiklio Nr.","Fizinio rodiklio pavadinimas","Fizinio rodiklio matavimo vnt.","Fizinio rodiklio vnt. skaičius","Tinkamų finansuoti išlaidų suma, Eur","Finansavimo suma, Eur"]
[]
[]
[]
[]
[]
[]
[]
[]
[]
[]
[]
[]
[]
[]
[]
[]
[]
[]
[]
[]
[]
[]
[]
[]
[]
[]
["5","Projekto vykdymas",null,null,{"$f":"SUM(E31:E55)","v":0},{"$f":"SUM(F31:F55)","v":0}]
[{"$f":"'1'!$D$2","v":0},{"$f":"'1'!$D$3","v":0},{"$f":"'1'!$D$4","v":0},{"$f":"'1'!$H$4","v":0},{"$f":"'1'!$G$10","v":0},{"$f":"'1'!$H$10","v":0}]
[{"$f":"'2'!$D$2","v":0},{"$f":"'2'!$D$3","v":0},{"$f":"'2'!$D$4","v":0},{"$f":"'2'!$H$4","v":0},{"$f":"'2'!$G$10","v":0},{"$f":"'2'!$H$10","v":0}]
[{"$f":"'3'!$D$2","v":0},{"$f":"'3'!$D$3","v":0},{"$f":"'3'!$D$4","v":0},{"$f":"'3'!$H$4","v":0},{"$f":"'3'!$G$10","v":0},{"$f":"'3'!$H$10","v":0}]
[{"$f":"'4'!$D$2","v":0},{"$f":"'4'!$D$3","v":0},{"$f":"'4'!$D$4","v":0},{"$f":"'4'!$H$4","v":0},{"$f":"'4'!$G$10","v":0},{"$f":"'4'!$H$10","v":0}]
[{"$f":"'5'!$D$2","v":0},{"$f":"'5'!$D$3","v":0},{"$f":"'5'!$D$4","v":0},{"$f":"'5'!$H$4","v":0},{"$f":"'5'!$G$10","v":0},{"$f":"'5'!$H$10","v":0}]
[{"$f":"'6'!$D$2","v":0},{"$f":"'6'!$D$3","v":0},{"$f":"'6'!$D$4","v":0},{"$f":"'6'!$H$4","v":0},{"$f":"'6'!$G$10","v":0},{"$f":"'6'!$H$10","v":0}]
[{"$f":"'7'!$D$2","v":0},{"$f":"'7'!$D$3","v":0},{"$f":"'7'!$D$4","v":0},{"$f":"'7'!$H$4","v":0},{"$f":"'7'!$G$10","v":0},{"$f":"'7'!$H$10","v":0}]
[{"$f":"'8'!$D$2","v":0},{"$f":"'8'!$D$3","v":0},{"$f":"'8'!$D$4","v":0},{"$f":"'8'!$H$4","v":0},{"$f":"'8'!$G$10","v":0},{"$f":"'8'!$H$10","v":0}]
[]
[]
[]
[]
[]
[]
[]
[]
[]
[]
[]
[]
[]
[]
[]
[]
[]
["Iš viso:",null,null,null,{"$f":"E4+E30","v":0},{"$f":"F4+F30","v":0}]
[]
["Veiklų, vykdomų pagal Aprašo 10.3 punktą, išlaidų suvestinė lentelė pagal išlaidų kategorijas (lentelė užsipildo automatiškai)"]
[]
["Fizinio rodiklio Nr.","Fizinio rodiklio pavadinimas","Tinkamų finansuoti išlaidų suma, Eur","Finansavimo suma, Eur"]
["5","Projekto vykdymas",{"$f":"'1'!G10+'2'!G10+'3'!G10+'4'!G10+'5'!G10+'6'!G10+'7'!G10+'8'!G10","v":0},{"$f":"'1'!H10+'2'!H10+'3'!H10+'4'!H10+'5'!H10+'6'!H10+'7'!H10+'8'!H10","v":0}]
["5.1","Produkto sertifikavimo išlaidos",{"$f":"'1'!G11+'2'!G11+'3'!G11+'4'!G11+'5'!G11+'6'!G11+'7'!G11+'8'!G11","v":0},{"$f":"'1'!H11+'2'!H11+'3'!H11+'4'!H11+'5'!H11+'6'!H11+'7'!H11+'8'!H11","v":0}]
["5.2","Sertifikavimo paslaugų pirkimo išlaidos",{"$f":"'1'!G22+'2'!G22+'3'!G22+'4'!G22+'5'!G22+'6'!G22+'7'!G22+'8'!G22","v":0},{"$f":"'1'!H22+'2'!H22+'3'!H22+'4'!H22+'5'!H22+'6'!H22+'7'!H22+'8'!H22","v":0}]
["5.3","Projektą vykdančio personalo komandiruočių išlaidos",{"$f":"'1'!G38+'2'!G38+'3'!G38+'4'!G38+'5'!G38+'6'!G38+'7'!G38+'8'!G38","v":0},{"$f":"'1'!H38+'2'!H38+'3'!H38+'4'!H38+'5'!H38+'6'!H38+'7'!H38+'8'!H38","v":0}]
["5.4","Projektą vykdančio personalo darbo užmokestis ir išlaidos su darbo santykiais susijusiems darbdavio įsipareigojimams",{"$f":"'1'!G109+'2'!G109+'3'!G109+'4'!G109+'5'!G109+'6'!G109+'7'!G109+'8'!G109","v":0},{"$f":"'1'!H109+'2'!H109+'3'!H109+'4'!H109+'5'!H109+'6'!H109+'7'!H109+'8'!H109","v":0}]
["Iš viso:",null,{"$f":"C61","v":0},{"$f":"D61","v":0}]

{"sheet":"1","index":2,"n_rows":160,"n_cols":11,"rows_kept":160,"cut":false,"hidden":false,"merged":[[159,0,159,5],[36,1,36,2],[109,5,113,5],[34,1,34,2],[114,1,118,1],[114,3,118,3],[114,4,118,4],[114,5,118,5],[109,0,113,0],[114,0,118,0],[119,0,123,0],[119,1,123,1],[119,3,123,3],[119,4,123,4],[119,5,123,5],[129,0,133,0],[124,0,128,0],[124,5,128,5],[139,0,143,0],[139,1,143,1],[139,3,143,3],[139,4,143,4],[139,5,143,5],[134,0,138,0],[2,0,2,2],[2,3,2,8],[8,1,8,2],[4,0,4,2],[4,3,4,8],[3,3,3,4],[3,5,3,6],[5,3,5,8],[108,1,108,5],[9,1,9,5],[10,1,10,5],[73,0,79,0],[80,0,86,0],[87,0,93,0],[94,0,100,0],[101,0,107,0],[16,1,16,2],[17,1,17,2],[18,1,18,2],[20,1,20,2],[22,1,22,2],[23,1,23,2],[24,1,24,2],[25,1,25,2],[73,8,79,8],[80,1,86,1],[80,8,86,8],[87,1,93,1],[87,8,93,8],[94,1,100,1],[94,8,100,8],[101,1,107,1],[101,8,107,8],[19,1,19,2],[11,1,11,2],[12,1,12,2],[13,1,13,2],[14,1,14,2],[15,1,15,2],[21,1,21,5],[27,1,27,2],[73,1,79,1],[26,1,26,2],[28,1,28,2],[29,1,29,2],[30,1,30,2],[31,1,31,2],[32,1,32,2],[33,1,33,2],[35,1,35,2],[119,7,123,7],[119,8,123,8],[109,1,113,1],[109,3,113,3],[109,4,113,4],[134,6,138,6],[134,7,138,7],[134,8,138,8],[124,6,128,6],[124,7,128,7],[124,8,128,8],[114,6,118,6],[114,7,118,7],[114,8,118,8],[109,6,113,6],[109,7,113,7],[109,8,113,8],[129,1,133,1],[129,3,133,3],[129,4,133,4],[129,5,133,5],[124,1,128,1],[124,3,128,3],[124,4,128,4],[134,4,138,4],[134,5,138,5],[149,7,153,7],[149,8,153,8],[154,0,158,0],[154,1,158,1],[154,3,158,3],[154,4,158,4],[154,5,158,5],[149,0,153,0],[149,1,153,1],[144,0,148,0],[144,1,148,1],[0,3,0,8],[154,6,158,6],[154,7,158,7],[154,8,158,8],[139,6,143,6],[139,7,143,7],[139,8,143,8],[129,6,133,6],[129,7,133,7],[129,8,133,8],[119,6,123,6],[149,3,153,3],[149,4,153,4],[149,5,153,5],[149,6,153,6],[144,3,148,3],[144,4,148,4],[144,5,148,5],[144,6,148,6],[144,7,148,7],[144,8,148,8],[37,1,37,5],[134,1,138,1],[134,3,138,3],[59,0,65,0],[59,1,65,1],[59,8,65,8],[66,0,72,0],[66,1,72,1],[66,8,72,8],[38,0,44,0],[38,1,44,1],[38,8,44,8],[45,0,51,0],[45,1,51,1],[45,8,51,8],[52,0,58,0],[52,1,58,1],[52,8,58,8]]}
[null,null,"Pasirinkite veiklos tipą:"]
[null,null,"Fizinio rodiklio Nr.:"]
["Fizinio rodiklio pavadinimas:"]
[null,null,"Fizinio rodiklio matavimo vnt.:",null,null,"Fizinio rodiklio vnt. skaičius:"]
["Juridinis asmuo (pareiškėjas, partneris), atsakingas už fizinį rodiklį:"]
[null,null,"Vykdytojo tipas:"]
[null,null,"Finansavimo intensyvumas:",null,null,null,"Pasirinkite biudžeto išlaidų kategoriją:","Visos"]
[]
["Eil. Nr.","Išlaidų kategorijos pavadinimas",null,"Matavimo vnt.","Kiekis","Vieneto kaina be PVM, Eur","Tinkamų finansuoti išlaidų suma be PVM, Eur","Finansavimo suma, Eur","Išlaidų pagrindimo dokumentų pavadinimas, data ir Nr."]
[5,"PROJEKTO VYKDYMAS",null,null,null,null,{"$f":"G11+G22+G38+G109","v":0},{"$f":"H11+H22+H109+H38","v":0}]
["5.1","Produkto sertifikavimo išlaidos",null,null,null,null,{"$f":"SUM(G12:G21)","v":0},{"$f":"SUM(H12:H21)","v":0}]
["5.1.1","Paslaugos pavadinimas",null,null,null,null,{"$f":"ROUND(E12*F12,2)","v":0},{"$f":"ROUND(G12*$D$7,2)","v":0}]
["5.1.2","Paslaugos pavadinimas",null,null,null,null,0,0]
["5.1.3","Paslaugos pavadinimas",null,null,null,null,0,0]
["5.1.4","Paslaugos pavadinimas",null,null,null,null,0,0]
["5.1.5","Paslaugos pavadinimas",null,null,null,null,0,0]
["5.1.6","Paslaugos pavadinimas",null,null,null,null,0,0]
["5.1.7","Paslaugos pavadinimas",null,null,null,null,0,0]
["5.1.8","Paslaugos pavadinimas",null,null,null,null,0,0]
["5.1.9","Paslaugos pavadinimas",null,null,null,null,0,0]
["5.1.10","Paslaugos pavadinimas",null,null,null,null,0,0]
["5.2","Sertifikavimo paslaugų pirkimo išlaidos",null,null,null,null,{"$f":"SUM(G23:G37)","v":0},{"$f":"SUM(H23:H37)","v":0}]
["5.2.1","Išlaidų pavadinimas",null,null,null,null,{"$f":"ROUND(E23*F23,2)","v":0},{"$f":"ROUND(G23*$D$7,2)","v":0}]
["5.2.2","Išlaidų pavadinimas",null,null,null,null,0,{"$f":"ROUND(G24*$D$7,2)","v":0}]
["5.2.3","Išlaidų pavadinimas",null,null,null,null,0,{"$f":"ROUND(G25*$D$7,2)","v":0}]
["5.2.4","Išlaidų pavadinimas",null,null,null,null,0,{"$f":"ROUND(G26*$D$7,2)","v":0}]
["5.2.5","Išlaidų pavadinimas",null,null,null,null,0,{"$f":"ROUND(G27*$D$7,2)","v":0}]
["5.2.6","Išlaidų pavadinimas",null,null,null,null,0,0]
["5.2.7","Išlaidų pavadinimas",null,null,null,null,0,0]
["5.2.8","Išlaidų pavadinimas",null,null,null,null,0,0]
["5.2.9","Išlaidų pavadinimas",null,null,null,null,0,0]
["5.2.10","Išlaidų pavadinimas",null,null,null,null,0,0]
["5.2.11","Išlaidų pavadinimas",null,null,null,null,0,0]
["5.2.12","Išlaidų pavadinimas",null,null,null,null,0,0]
["5.2.13","Išlaidų pavadinimas",null,null,null,null,0,0]
["5.2.14","Išlaidų pavadinimas",null,null,null,null,0,0]
["5.2.15","Išlaidų pavadinimas",null,null,null,null,{"$f":"ROUND(E37*F37,2)","v":0},0]
["5.3","Projektą vykdančio personalo komandiruočių išlaidos",null,null,null,null,{"$f":"SUM(G39,G46,G53,G60,G67,G74,G81,G88,G95,G102)","v":0},{"$f":"SUM(H39,H46,H53,H60,H67,H74,H81,H88,H95,H102)","v":0}]
["5.3.1","Komandiruotės pavadinimas, vieta, trukmė dienomis, vykstančių asmenų skaičius","Iš viso komandiruotei",null,null,null,{"$f":"SUM(G40:G45)","v":0},{"$f":"ROUND(G39*$D$7,2)","v":0}]
[null,null,"Dienpinigiai",null,null,null,{"$f":"ROUND(E40*F40,2)","v":0}]
[null,null,"Gyvenamojo ploto nuoma",null,null,null,0]
[null,null,"Kelionės išlaidos",null,null,null,0]
[null,null,"Dalyvavimo mokestis",null,null,null,0]
[null,null,"Kitos išlaidų pavadinimas",null,null,null,0]
[null,null,"Kitos išlaidų pavadinimas",null,null,null,0]
["5.3.2","Komandiruotės pavadinimas, vieta, trukmė dienomis, vykstančių asmenų skaičius","Iš viso komandiruotei",null,null,null,{"$f":"SUM(G47:G52)","v":0},{"$f":"ROUND(G46*$D$7,2)","v":0}]
[null,null,"Dienpinigiai",null,null,null,{"$f":"ROUND(E47*F47,2)","v":0}]
[null,null,"Gyvenamojo ploto nuoma",null,null,null,0]
[null,null,"Kelionės išlaidos",null,null,null,0]
[null,null,"Dalyvavimo mokestis",null,null,null,0]
[null,null,"Kitos išlaidų pavadinimas",null,null,null,0]
[null,null,"Kitos išlaidų pavadinimas",null,null,null,0]
["5.3.3","Komandiruotės pavadinimas, vieta, trukmė dienomis, vykstančių asmenų skaičius","Iš viso komandiruotei",null,null,null,{"$f":"SUM(G54:G59)","v":0},{"$f":"ROUND(G53*$D$7,2)","v":0}]
[null,null,"Dienpinigiai",null,null,null,{"$f":"ROUND(E54*F54,2)","v":0}]
[null,null,"Gyvenamojo ploto nuoma",null,null,null,0]
[null,null,"Kelionės išlaidos",null,null,null,0]
[null,null,"Dalyvavimo mokestis",null,null,null,0]
[null,null,"Kitos išlaidų pavadinimas",null,null,null,0]
[null,null,"Kitos išlaidų pavadinimas",null,null,null,0]
["5.3.4","Komandiruotės pavadinimas, vieta, trukmė dienomis, vykstančių asmenų skaičius","Iš viso komandiruotei",null,null,null,{"$f":"SUM(G61:G66)","v":0},{"$f":"ROUND(G60*$D$7,2)","v":0}]
[null,null,"Dienpinigiai",null,null,null,{"$f":"ROUND(E61*F61,2)","v":0}]
[null,null,"Gyvenamojo ploto nuoma",null,null,null,0]
[null,null,"Kelionės išlaidos",null,null,null,0]
[null,null,"Dalyvavimo mokestis",null,null,null,0]
[null,null,"Kitos išlaidų pavadinimas",null,null,null,0]
[null,null,"Kitos išlaidų pavadinimas",null,null,null,0]
["5.3.5","Komandiruotės pavadinimas, vieta, trukmė dienomis, vykstančių asmenų skaičius","Iš viso komandiruotei",null,null,null,{"$f":"SUM(G68:G73)","v":0},{"$f":"ROUND(G67*$D$7,2)","v":0}]
[null,null,"Dienpinigiai",null,null,null,{"$f":"ROUND(E68*F68,2)","v":0}]
[null,null,"Gyvenamojo ploto nuoma",null,null,null,0]
[null,null,"Kelionės išlaidos",null,null,null,0]
[null,null,"Dalyvavimo mokestis",null,null,null,0]
[null,null,"Kitos išlaidų pavadinimas",null,null,null,0]
[null,null,"Kitos išlaidų pavadinimas",null,null,null,0]
["5.3.6","Komandiruotės pavadinimas, vieta, trukmė dienomis, vykstančių asmenų skaičius","Iš viso komandiruotei",null,null,null,{"$f":"SUM(G75:G80)","v":0},{"$f":"ROUND(G74*$D$7,2)","v":0}]
[null,null,"Dienpinigiai",null,null,null,{"$f":"ROUND(E75*F75,2)","v":0}]
[null,null,"Gyvenamojo ploto nuoma",null,null,null,0]
[null,null,"Kelionės išlaidos",null,null,null,0]
[null,null,"Dalyvavimo mokestis",null,null,null,0]
[null,null,"Kitos išlaidų pavadinimas",null,null,null,0]
[null,null,"Kitos išlaidų pavadinimas",null,null,null,0]
["5.3.7","Komandiruotės pavadinimas, vieta, trukmė dienomis, vykstančių asmenų skaičius","Iš viso komandiruotei",null,null,null,{"$f":"SUM(G82:G87)","v":0},{"$f":"ROUND(G81*$D$7,2)","v":0}]
[null,null,"Dienpinigiai",null,null,null,{"$f":"ROUND(E82*F82,2)","v":0}]
[null,null,"Gyvenamojo ploto nuoma",null,null,null,0]
[null,null,"Kelionės išlaidos",null,null,null,0]
[null,null,"Dalyvavimo mokestis",null,null,null,0]
[null,null,"Kitos išlaidų pavadinimas",null,null,null,0]
[null,null,"Kitos išlaidų pavadinimas",null,null,null,0]
["5.3.8","Komandiruotės pavadinimas, vieta, trukmė dienomis, vykstančių asmenų skaičius","Iš viso komandiruotei",null,null,null,{"$f":"SUM(G89:G94)","v":0},{"$f":"ROUND(G88*$D$7,2)","v":0}]
[null,null,"Dienpinigiai",null,null,null,{"$f":"ROUND(E89*F89,2)","v":0}]
[null,null,"Gyvenamojo ploto nuoma",null,null,null,0]
[null,null,"Kelionės išlaidos",null,null,null,0]
[null,null,"Dalyvavimo mokestis",null,null,null,0]
[null,null,"Kitos išlaidų pavadinimas",null,null,null,0]
[null,null,"Kitos išlaidų pavadinimas",null,null,null,0]
["5.3.9","Komandiruotės pavadinimas, vieta, trukmė dienomis, vykstančių asmenų skaičius","Iš viso komandiruotei",null,null,null,{"$f":"SUM(G96:G101)","v":0},{"$f":"ROUND(G95*$D$7,2)","v":0}]
[null,null,"Dienpinigiai",null,null,null,{"$f":"ROUND(E96*F96,2)","v":0}]
[null,null,"Gyvenamojo ploto nuoma",null,null,null,0]
[null,null,"Kelionės išlaidos",null,null,null,0]
[null,null,"Dalyvavimo mokestis",null,null,null,0]
[null,null,"Kitos išlaidų pavadinimas",null,null,null,0]
[null,null,"Kitos išlaidų pavadinimas",null,null,null,0]
["5.3.10","Komandiruotės pavadinimas, vieta, trukmė dienomis, vykstančių asmenų skaičius","Iš viso komandiruotei",null,null,null,{"$f":"SUM(G103:G108)","v":0},{"$f":"ROUND(G102*$D$7,2)","v":0}]
[null,null,"Dienpinigiai",null,null,null,{"$f":"ROUND(E103*F103,2)","v":0}]
[null,null,"Gyvenamojo ploto nuoma",null,null,null,0]
[null,null,"Kelionės išlaidos",null,null,null,0]
[null,null,"Dalyvavimo mokestis",null,null,null,0]
[null,null,"Kitos išlaidų pavadinimas",null,null,null,0]
[null,null,"Kitos išlaidų pavadinimas",null,null,null,0]
["5.4","Projektą vykdančio personalo darbo užmokestis ir išlaidos su darbo santykiais susijusiems darbdavio įsipareigojimams",null,null,null,null,{"$f":"SUM(G110:G159)","v":0},{"$f":"SUM(H110:H159)","v":0},null,null,"Faktiškai gaunamas darbo užmokesti už 1 valandą pagal  pastarųjų 6 mėn. vidurkį, Eur"]
["5.4.1","Pareigybės pavadinimas","Darbuotojo vardas pavardė","val.",null,{"$f":"IFERROR(ROUND(AVERAGE(K110:K114),2),\"0\")","v":"0"},{"$f":"ROUND(E110*F110,2)","v":0},{"$f":"ROUND(G110*$D$7,2)","v":0}]
[null,null,"Darbuotojo vardas pavardė"]
[null,null,"Darbuotojo vardas pavardė"]
[null,null,"Darbuotojo vardas pavardė"]
[null,null,"Darbuotojo vardas pavardė"]
["5.4.2","Pareigybės pavadinimas","Darbuotojo vardas pavardė","val.",null,{"$f":"IFERROR(ROUND(AVERAGE(K115:K119),2),\"0\")","v":"0"},{"$f":"ROUND(E115*F115,2)","v":0},{"$f":"ROUND(G115*$D$7,2)","v":0}]
[null,null,"Darbuotojo vardas pavardė"]
[null,null,"Darbuotojo vardas pavardė"]
[null,null,"Darbuotojo vardas pavardė"]
[null,null,"Darbuotojo vardas pavardė"]
["5.4.3","Pareigybės pavadinimas","Darbuotojo vardas pavardė","val.",null,{"$f":"IFERROR(ROUND(AVERAGE(K120:K124),2),\"0\")","v":"0"},{"$f":"ROUND(E120*F120,2)","v":0},{"$f":"ROUND(G120*$D$7,2)","v":0}]
[null,null,"Darbuotojo vardas pavardė"]
[null,null,"Darbuotojo vardas pavardė"]
[null,null,"Darbuotojo vardas pavardė"]
[null,null,"Darbuotojo vardas pavardė"]
["5.4.4","Pareigybės pavadinimas","Darbuotojo vardas pavardė","val.",null,{"$f":"IFERROR(ROUND(AVERAGE(K125:K129),2),\"0\")","v":"0"},{"$f":"ROUND(E125*F125,2)","v":0},{"$f":"ROUND(G125*$D$7,2)","v":0}]
[null,null,"Darbuotojo vardas pavardė"]
[null,null,"Darbuotojo vardas pavardė"]
[null,null,"Darbuotojo vardas pavardė"]
[null,null,"Darbuotojo vardas pavardė"]
["5.4.5","Pareigybės pavadinimas","Darbuotojo vardas pavardė","val.",null,{"$f":"IFERROR(ROUND(AVERAGE(K130:K134),2),\"0\")","v":"0"},{"$f":"ROUND(E130*F130,2)","v":0},{"$f":"ROUND(G130*$D$7,2)","v":0}]
[null,null,"Darbuotojo vardas pavardė"]
[null,null,"Darbuotojo vardas pavardė"]
[null,null,"Darbuotojo vardas pavardė"]
[null,null,"Darbuotojo vardas pavardė"]
["5.4.6","Pareigybės pavadinimas","Darbuotojo vardas pavardė","val.",null,{"$f":"IFERROR(ROUND(AVERAGE(K135:K139),2),\"0\")","v":"0"},{"$f":"ROUND(E135*F135,2)","v":0},{"$f":"ROUND(G135*$D$7,2)","v":0}]
[null,null,"Darbuotojo vardas pavardė"]
[null,null,"Darbuotojo vardas pavardė"]
[null,null,"Darbuotojo vardas pavardė"]
[null,null,"Darbuotojo vardas pavardė"]
["5.4.7","Pareigybės pavadinimas","Darbuotojo vardas pavardė","val.",null,{"$f":"IFERROR(ROUND(AVERAGE(K140:K144),2),\"0\")","v":"0"},{"$f":"ROUND(E140*F140,2)","v":0},{"$f":"ROUND(G140*$D$7,2)","v":0}]
[null,null,"Darbuotojo vardas pavardė"]
[null,null,"Darbuotojo vardas pavardė"]
[null,null,"Darbuotojo vardas pavardė"]
[null,null,"Darbuotojo vardas pavardė"]
["5.4.8","Pareigybės pavadinimas","Darbuotojo vardas pavardė","val.",null,{"$f":"IFERROR(ROUND(AVERAGE(K145:K149),2),\"0\")","v":"0"},{"$f":"ROUND(E145*F145,2)","v":0},{"$f":"ROUND(G145*$D$7,2)","v":0}]
[null,null,"Darbuotojo vardas pavardė"]
[null,null,"Darbuotojo vardas pavardė"]
[null,null,"Darbuotojo vardas pavardė"]
[null,null,"Darbuotojo vardas pavardė"]
["5.4.9","Pareigybės pavadinimas","Darbuotojo vardas pavardė","val.",null,{"$f":"IFERROR(ROUND(AVERAGE(K150:K154),2),\"0\")","v":"0"},{"$f":"ROUND(E150*F150,2)","v":0},{"$f":"ROUND(G150*$D$7,2)","v":0}]
[null,null,"Darbuotojo vardas pavardė"]
[null,null,"Darbuotojo vardas pavardė"]
[null,null,"Darbuotojo vardas pavardė"]
[null,null,"Darbuotojo vardas pavardė"]
["5.4.10","Pareigybės pavadinimas","Darbuotojo vardas pavardė","val.",null,{"$f":"IFERROR(ROUND(AVERAGE(K155:K159),2),\"0\")","v":"0"},{"$f":"ROUND(E155*F155,2)","v":0},{"$f":"ROUND(G155*$D$7,2)","v":0}]
[null,null,"Darbuotojo vardas pavardė"]
[null,null,"Darbuotojo vardas pavardė"]
[null,null,"Darbuotojo vardas pavardė"]
[null,null,"Darbuotojo vardas pavardė"]
["Iš viso tinkamų finansuoti išlaidų:",null,null,null,null,null,{"$f":"G10","v":0},{"$f":"H10","v":0}]

{"sheet":"2","index":3,"n_rows":160,"n_cols":11,"rows_kept":160,"cut":false,"hidden":false,"merged":[[5,3,5,8],[8,1,8,2],[9,1,9,5],[10,1,10,5],[11,1,11,2],[12,1,12,2],[0,3,0,8],[2,0,2,2],[2,3,2,8],[3,3,3,4],[3,5,3,6],[4,0,4,2],[4,3,4,8],[19,1,19,2],[20,1,20,2],[21,1,21,5],[22,1,22,2],[23,1,23,2],[24,1,24,2],[13,1,13,2],[14,1,14,2],[15,1,15,2],[16,1,16,2],[17,1,17,2],[18,1,18,2],[31,1,31,2],[32,1,32,2],[33,1,33,2],[34,1,34,2],[35,1,35,2],[36,1,36,2],[25,1,25,2],[26,1,26,2],[27,1,27,2],[28,1,28,2],[29,1,29,2],[30,1,30,2],[52,0,58,0],[52,1,58,1],[52,8,58,8],[59,0,65,0],[59,1,65,1],[59,8,65,8],[37,1,37,5],[38,0,44,0],[38,1,44,1],[38,8,44,8],[45,0,51,0],[45,1,51,1],[45,8,51,8],[80,0,86,0],[80,1,86,1],[80,8,86,8],[87,0,93,0],[87,1,93,1],[87,8,93,8],[66,0,72,0],[66,1,72,1],[66,8,72,8],[73,0,79,0],[73,1,79,1],[73,8,79,8],[108,1,108,5],[109,0,113,0],[109,1,113,1],[109,3,113,3],[109,4,113,4],[109,5,113,5],[94,0,100,0],[94,1,100,1],[94,8,100,8],[101,0,107,0],[101,1,107,1],[101,8,107,8],[109,6,113,6],[109,7,113,7],[109,8,113,8],[114,0,118,0],[114,1,118,1],[114,3,118,3],[114,4,118,4],[114,5,118,5],[114,6,118,6],[114,7,118,7],[114,8,118,8],[119,0,123,0],[119,1,123,1],[119,3,123,3],[119,4,123,4],[119,5,123,5],[119,6,123,6],[119,7,123,7],[119,8,123,8],[124,7,128,7],[124,8,128,8],[129,0,133,0],[129,1,133,1],[129,3,133,3],[129,4,133,4],[129,5,133,5],[129,6,133,6],[129,7,133,7],[129,8,133,8],[124,0,128,0],[124,1,128,1],[124,3,128,3],[124,4,128,4],[124,5,128,5],[124,6,128,6],[134,7,138,7],[134,8,138,8],[139,0,143,0],[139,1,143,1],[139,3,143,3],[139,4,143,4],[139,5,143,5],[139,6,143,6],[139,7,143,7],[139,8,143,8],[134,0,138,0],[134,1,138,1],[134,3,138,3],[134,4,138,4],[134,5,138,5],[134,6,138,6],[144,7,148,7],[144,8,148,8],[149,0,153,0],[149,1,153,1],[149,3,153,3],[149,4,153,4],[149,5,153,5],[149,6,153,6],[149,7,153,7],[149,8,153,8],[144,0,148,0],[144,1,148,1],[144,3,148,3],[144,4,148,4],[144,5,148,5],[144,6,148,6],[154,7,158,7],[154,8,158,8],[159,0,159,5],[154,0,158,0],[154,1,158,1],[154,3,158,3],[154,4,158,4],[154,5,158,5],[154,6,158,6]]}
[null,null,"Pasirinkite veiklos tipą:"]
[null,null,"Fizinio rodiklio Nr.:"]
["Fizinio rodiklio pavadinimas:"]
[null,null,"Fizinio rodiklio matavimo vnt.:",null,null,"Fizinio rodiklio vnt. skaičius:"]
["Juridinis asmuo (pareiškėjas, partneris), atsakingas už fizinį rodiklį:"]
[null,null,"Vykdytojo tipas:"]
[null,null,"Finansavimo intensyvumas:",null,null,null,"Pasirinkite biudžeto išlaidų kategoriją:","Visos"]
[]
["Eil. Nr.","Išlaidų kategorijos pavadinimas",null,"Matavimo vnt.","Kiekis","Vieneto kaina be PVM, Eur","Tinkamų finansuoti išlaidų suma be PVM, Eur","Finansavimo suma, Eur","Išlaidų pagrindimo dokumentų pavadinimas, data ir Nr."]
[5,"PROJEKTO VYKDYMAS",null,null,null,null,{"$f":"G11+G22+G38+G109","v":0},{"$f":"H11+H22+H109+H38","v":0}]
["5.1","Produkto sertifikavimo išlaidos",null,null,null,null,{"$f":"SUM(G12:G21)","v":0},{"$f":"SUM(H12:H21)","v":0}]
["5.1.1","Paslaugos pavadinimas",null,null,null,null,{"$f":"ROUND(E12*F12,2)","v":0},{"$f":"ROUND(G12*$D$7,2)","v":0}]
["5.1.2","Paslaugos pavadinimas",null,null,null,null,0,0]
["5.1.3","Paslaugos pavadinimas",null,null,null,null,0,0]
["5.1.4","Paslaugos pavadinimas",null,null,null,null,0,0]
["5.1.5","Paslaugos pavadinimas",null,null,null,null,0,0]
["5.1.6","Paslaugos pavadinimas",null,null,null,null,0,0]
["5.1.7","Paslaugos pavadinimas",null,null,null,null,0,0]
["5.1.8","Paslaugos pavadinimas",null,null,null,null,0,0]
["5.1.9","Paslaugos pavadinimas",null,null,null,null,0,0]
["5.1.10","Paslaugos pavadinimas",null,null,null,null,0,0]
["5.2","Sertifikavimo paslaugų pirkimo išlaidos",null,null,null,null,{"$f":"SUM(G23:G37)","v":0},{"$f":"SUM(H23:H37)","v":0}]
["5.2.1","Išlaidų pavadinimas",null,null,null,null,{"$f":"ROUND(E23*F23,2)","v":0},{"$f":"ROUND(G23*$D$7,2)","v":0}]
["5.2.2","Išlaidų pavadinimas",null,null,null,null,{"$f":"ROUND(E24*F24,2)","v":0},{"$f":"ROUND(G24*$D$7,2)","v":0}]
["5.2.3","Išlaidų pavadinimas",null,null,null,null,{"$f":"ROUND(E25*F25,2)","v":0},{"$f":"ROUND(G25*$D$7,2)","v":0}]
["5.2.4","Išlaidų pavadinimas",null,null,null,null,{"$f":"ROUND(E26*F26,2)","v":0},{"$f":"ROUND(G26*$D$7,2)","v":0}]
["5.2.5","Išlaidų pavadinimas",null,null,null,null,{"$f":"ROUND(E27*F27,2)","v":0},{"$f":"ROUND(G27*$D$7,2)","v":0}]
["5.2.6","Išlaidų pavadinimas",null,null,null,null,0,0]
["5.2.7","Išlaidų pavadinimas",null,null,null,null,0,0]
["5.2.8","Išlaidų pavadinimas",null,null,null,null,0,0]
["5.2.9","Išlaidų pavadinimas",null,null,null,null,0,0]
["5.2.10","Išlaidų pavadinimas",null,null,null,null,0,0]
["5.2.11","Išlaidų pavadinimas",null,null,null,null,0,0]
["5.2.12","Išlaidų pavadinimas",null,null,null,null,0,0]
["5.2.13","Išlaidų pavadinimas",null,null,null,null,0,0]
["5.2.14","Išlaidų pavadinimas",null,null,null,null,0,0]
["5.2.15","Išlaidų pavadinimas",null,null,null,null,0,0]
["5.3","Projektą vykdančio personalo komandiruočių išlaidos",null,null,null,null,{"$f":"SUM(G39,G46,G53,G60,G67,G74,G81,G88,G95,G102)","v":0},{"$f":"SUM(H39,H46,H53,H60,H67,H74,H81,H88,H95,H102)","v":0}]
["5.3.1","Komandiruotės pavadinimas, vieta, trukmė dienomis, vykstančių asmenų skaičius","Iš viso komandiruotei",null,null,null,{"$f":"SUM(G40:G45)","v":0},{"$f":"ROUND(G39*$D$7,2)","v":0}]
[null,null,"Dienpinigiai",null,null,null,{"$f":"ROUND(E40*F40,2)","v":0}]
[null,null,"Gyvenamojo ploto nuoma",null,null,null,0]
[null,null,"Kelionės išlaidos",null,null,null,0]
[null,null,"Dalyvavimo mokestis",null,null,null,0]
[null,null,"Kitos išlaidų pavadinimas",null,null,null,0]
[null,null,"Kitos išlaidų pavadinimas",null,null,null,0]
["5.3.2","Komandiruotės pavadinimas, vieta, trukmė dienomis, vykstančių asmenų skaičius","Iš viso komandiruotei",null,null,null,{"$f":"SUM(G47:G52)","v":0},{"$f":"ROUND(G46*$D$7,2)","v":0}]
[null,null,"Dienpinigiai",null,null,null,{"$f":"ROUND(E47*F47,2)","v":0}]
[null,null,"Gyvenamojo ploto nuoma",null,null,null,0]
[null,null,"Kelionės išlaidos",null,null,null,0]
[null,null,"Dalyvavimo mokestis",null,null,null,0]
[null,null,"Kitos išlaidų pavadinimas",null,null,null,0]
[null,null,"Kitos išlaidų pavadinimas",null,null,null,0]
["5.3.3","Komandiruotės pavadinimas, vieta, trukmė dienomis, vykstančių asmenų skaičius","Iš viso komandiruotei",null,null,null,{"$f":"SUM(G54:G59)","v":0},{"$f":"ROUND(G53*$D$7,2)","v":0}]
[null,null,"Dienpinigiai",null,null,null,{"$f":"ROUND(E54*F54,2)","v":0}]
[null,null,"Gyvenamojo ploto nuoma",null,null,null,0]
[null,null,"Kelionės išlaidos",null,null,null,0]
[null,null,"Dalyvavimo mokestis",null,null,null,0]
[null,null,"Kitos išlaidų pavadinimas",null,null,null,0]
[null,null,"Kitos išlaidų pavadinimas",null,null,null,0]
["5.3.4","Komandiruotės pavadinimas, vieta, trukmė dienomis, vykstančių asmenų skaičius","Iš viso komandiruotei",null,null,null,{"$f":"SUM(G61:G66)","v":0},{"$f":"ROUND(G60*$D$7,2)","v":0}]
[null,null,"Dienpinigiai",null,null,null,{"$f":"ROUND(E61*F61,2)","v":0}]
[null,null,"Gyvenamojo ploto nuoma",null,null,null,0]
[null,null,"Kelionės išlaidos",null,null,null,0]
[null,null,"Dalyvavimo mokestis",null,null,null,0]
[null,null,"Kitos išlaidų pavadinimas",null,null,null,0]
[null,null,"Kitos išlaidų pavadinimas",null,null,null,0]
["5.3.5","Komandiruotės pavadinimas, vieta, trukmė dienomis, vykstančių asmenų skaičius","Iš viso komandiruotei",null,null,null,{"$f":"SUM(G68:G73)","v":0},{"$f":"ROUND(G67*$D$7,2)","v":0}]
[null,null,"Dienpinigiai",null,null,null,{"$f":"ROUND(E68*F68,2)","v":0}]
[null,null,"Gyvenamojo ploto nuoma",null,null,null,0]
[null,null,"Kelionės išlaidos",null,null,null,0]
[null,null,"Dalyvavimo mokestis",null,null,null,0]
[null,null,"Kitos išlaidų pavadinimas",null,null,null,0]
[null,null,"Kitos išlaidų pavadinimas",null,null,null,0]
["5.3.6","Komandiruotės pavadinimas, vieta, trukmė dienomis, vykstančių asmenų skaičius","Iš viso komandiruotei",null,null,null,{"$f":"SUM(G75:G80)","v":0},{"$f":"ROUND(G74*$D$7,2)","v":0}]
[null,null,"Dienpinigiai",null,null,null,{"$f":"ROUND(E75*F75,2)","v":0}]
[null,null,"Gyvenamojo ploto nuoma",null,null,null,0]
[null,null,"Kelionės išlaidos",null,null,null,0]
[null,null,"Dalyvavimo mokestis",null,null,null,0]
[null,null,"Kitos išlaidų pavadinimas",null,null,null,0]
[null,null,"Kitos išlaidų pavadinimas",null,null,null,0]
["5.3.7","Komandiruotės pavadinimas, vieta, trukmė dienomis, vykstančių asmenų skaičius","Iš viso komandiruotei",null,null,null,{"$f":"SUM(G82:G87)","v":0},{"$f":"ROUND(G81*$D$7,2)","v":0}]
[null,null,"Dienpinigiai",null,null,null,{"$f":"ROUND(E82*F82,2)","v":0}]
[null,null,"Gyvenamojo ploto nuoma",null,null,null,0]
[null,null,"Kelionės išlaidos",null,null,null,0]
[null,null,"Dalyvavimo mokestis",null,null,null,0]
[null,null,"Kitos išlaidų pavadinimas",null,null,null,0]
[null,null,"Kitos išlaidų pavadinimas",null,null,null,0]
["5.3.8","Komandiruotės pavadinimas, vieta, trukmė dienomis, vykstančių asmenų skaičius","Iš viso komandiruotei",null,null,null,{"$f":"SUM(G89:G94)","v":0},{"$f":"ROUND(G88*$D$7,2)","v":0}]
[null,null,"Dienpinigiai",null,null,null,{"$f":"ROUND(E89*F89,2)","v":0}]
[null,null,"Gyvenamojo ploto nuoma",null,null,null,0]
[null,null,"Kelionės išlaidos",null,null,null,0]
[null,null,"Dalyvavimo mokestis",null,null,null,0]
[null,null,"Kitos išlaidų pavadinimas",null,null,null,0]
[null,null,"Kitos išlaidų pavadinimas",null,null,null,0]
["5.3.9","Komandiruotės pavadinimas, vieta, trukmė dienomis, vykstančių asmenų skaičius","Iš viso komandiruotei",null,null,null,{"$f":"SUM(G96:G101)","v":0},{"$f":"ROUND(G95*$D$7,2)","v":0}]
[null,null,"Dienpinigiai",null,null,null,{"$f":"ROUND(E96*F96,2)","v":0}]
[null,null,"Gyvenamojo ploto nuoma",null,null,null,0]
[null,null,"Kelionės išlaidos",null,null,null,0]
[null,null,"Dalyvavimo mokestis",null,null,null,0]
[null,null,"Kitos išlaidų pavadinimas",null,null,null,0]
[null,null,"Kitos išlaidų pavadinimas",null,null,null,0]
["5.3.10","Komandiruotės pavadinimas, vieta, trukmė dienomis, vykstančių asmenų skaičius","Iš viso komandiruotei",null,null,null,{"$f":"SUM(G103:G108)","v":0},{"$f":"ROUND(G102*$D$7,2)","v":0}]
[null,null,"Dienpinigiai",null,null,null,{"$f":"ROUND(E103*F103,2)","v":0}]
[null,null,"Gyvenamojo ploto nuoma",null,null,null,0]
[null,null,"Kelionės išlaidos",null,null,null,0]
[null,null,"Dalyvavimo mokestis",null,null,null,0]
[null,null,"Kitos išlaidų pavadinimas",null,null,null,0]
[null,null,"Kitos išlaidų pavadinimas",null,null,null,0]
["5.4","Projektą vykdančio personalo darbo užmokestis ir išlaidos su darbo santykiais susijusiems darbdavio įsipareigojimams",null,null,null,null,{"$f":"SUM(G110:G159)","v":0},{"$f":"SUM(H110:H159)","v":0},null,null,"Faktiškai gaunamas darbo užmokesti už 1 valandą pagal  pastarųjų 6 mėn. vidurkį, Eur"]
["5.4.1","Pareigybės pavadinimas","Darbuotojo vardas pavardė","val.",null,{"$f":"IFERROR(ROUND(AVERAGE(K110:K114),2),\"0\")","v":"0"},{"$f":"ROUND(E110*F110,2)","v":0},{"$f":"ROUND(G110*$D$7,2)","v":0}]
[null,null,"Darbuotojo vardas pavardė"]
[null,null,"Darbuotojo vardas pavardė"]
[null,null,"Darbuotojo vardas pavardė"]
[null,null,"Darbuotojo vardas pavardė"]
["5.4.2","Pareigybės pavadinimas","Darbuotojo vardas pavardė","val.",null,{"$f":"IFERROR(ROUND(AVERAGE(K115:K119),2),\"0\")","v":"0"},{"$f":"ROUND(E115*F115,2)","v":0},{"$f":"ROUND(G115*$D$7,2)","v":0}]
[null,null,"Darbuotojo vardas pavardė"]
[null,null,"Darbuotojo vardas pavardė"]
[null,null,"Darbuotojo vardas pavardė"]
[null,null,"Darbuotojo vardas pavardė"]
["5.4.3","Pareigybės pavadinimas","Darbuotojo vardas pavardė","val.",null,{"$f":"IFERROR(ROUND(AVERAGE(K120:K124),2),\"0\")","v":"0"},{"$f":"ROUND(E120*F120,2)","v":0},{"$f":"ROUND(G120*$D$7,2)","v":0}]
[null,null,"Darbuotojo vardas pavardė"]
[null,null,"Darbuotojo vardas pavardė"]
[null,null,"Darbuotojo vardas pavardė"]
[null,null,"Darbuotojo vardas pavardė"]
["5.4.4","Pareigybės pavadinimas","Darbuotojo vardas pavardė","val.",null,{"$f":"IFERROR(ROUND(AVERAGE(K125:K129),2),\"0\")","v":"0"},{"$f":"ROUND(E125*F125,2)","v":0},{"$f":"ROUND(G125*$D$7,2)","v":0}]
[null,null,"Darbuotojo vardas pavardė"]
[null,null,"Darbuotojo vardas pavardė"]
[null,null,"Darbuotojo vardas pavardė"]
[null,null,"Darbuotojo vardas pavardė"]
["5.4.5","Pareigybės pavadinimas","Darbuotojo vardas pavardė","val.",null,{"$f":"IFERROR(ROUND(AVERAGE(K130:K134),2),\"0\")","v":"0"},{"$f":"ROUND(E130*F130,2)","v":0},{"$f":"ROUND(G130*$D$7,2)","v":0}]
[null,null,"Darbuotojo vardas pavardė"]
[null,null,"Darbuotojo vardas pavardė"]
[null,null,"Darbuotojo vardas pavardė"]
[null,null,"Darbuotojo vardas pavardė"]
["5.4.6","Pareigybės pavadinimas","Darbuotojo vardas pavardė","val.",null,{"$f":"IFERROR(ROUND(AVERAGE(K135:K139),2),\"0\")","v":"0"},{"$f":"ROUND(E135*F135,2)","v":0},{"$f":"ROUND(G135*$D$7,2)","v":0}]
[null,null,"Darbuotojo vardas pavardė"]
[null,null,"Darbuotojo vardas pavardė"]
[null,null,"Darbuotojo vardas pavardė"]
[null,null,"Darbuotojo vardas pavardė"]
["5.4.7","Pareigybės pavadinimas","Darbuotojo vardas pavardė","val.",null,{"$f":"IFERROR(ROUND(AVERAGE(K140:K144),2),\"0\")","v":"0"},{"$f":"ROUND(E140*F140,2)","v":0},{"$f":"ROUND(G140*$D$7,2)","v":0}]
[null,null,"Darbuotojo vardas pavardė"]
[null,null,"Darbuotojo vardas pavardė"]
[null,null,"Darbuotojo vardas pavardė"]
[null,null,"Darbuotojo vardas pavardė"]
["5.4.8","Pareigybės pavadinimas","Darbuotojo vardas pavardė","val.",null,{"$f":"IFERROR(ROUND(AVERAGE(K145:K149),2),\"0\")","v":"0"},{"$f":"ROUND(E145*F145,2)","v":0},{"$f":"ROUND(G145*$D$7,2)","v":0}]
[null,null,"Darbuotojo vardas pavardė"]
[null,null,"Darbuotojo vardas pavardė"]
[null,null,"Darbuotojo vardas pavardė"]
[null,null,"Darbuotojo vardas pavardė"]
["5.4.9","Pareigybės pavadinimas","Darbuotojo vardas pavardė","val.",null,{"$f":"IFERROR(ROUND(AVERAGE(K150:K154),2),\"0\")","v":"0"},{"$f":"ROUND(E150*F150,2)","v":0},{"$f":"ROUND(G150*$D$7,2)","v":0}]
[null,null,"Darbuotojo vardas pavardė"]
[null,null,"Darbuotojo vardas pavardė"]
[null,null,"Darbuotojo vardas pavardė"]
[null,null,"Darbuotojo vardas pavardė"]
["5.4.10","Pareigybės pavadinimas","Darbuotojo vardas pavardė","val.",null,{"$f":"IFERROR(ROUND(AVERAGE(K155:K159),2),\"0\")","v":"0"},{"$f":"ROUND(E155*F155,2)","v":0},{"$f":"ROUND(G155*$D$7,2)","v":0}]
[null,null,"Darbuotojo vardas pavardė"]
[null,null,"Darbuotojo vardas pavardė"]
[null,null,"Darbuotojo vardas pavardė"]
[null,null,"Darbuotojo vardas pavardė"]
["Iš viso tinkamų finansuoti išlaidų:",null,null,null,null,null,{"$f":"G10","v":0},{"$f":"H10","v":0}]

{"sheet":"3","index":4,"n_rows":160,"n_cols":11,"rows_kept":160,"cut":false,"hidden":false,"merged":[[5,3,5,8],[8,1,8,2],[9,1,9,5],[10,1,10,5],[11,1,11,2],[12,1,12,2],[0,3,0,8],[2,0,2,2],[2,3,2,8],[3,3,3,4],[3,5,3,6],[4,0,4,2],[4,3,4,8],[19,1,19,2],[20,1,20,2],[21,1,21,5],[22,1,22,2],[23,1,23,2],[24,1,24,2],[13,1,13,2],[14,1,14,2],[15,1,15,2],[16,1,16,2],[17,1,17,2],[18,1,18,2],[31,1,31,2],[32,1,32,2],[33,1,33,2],[34,1,34,2],[35,1,35,2],[36,1,36,2],[25,1,25,2],[26,1,26,2],[27,1,27,2],[28,1,28,2],[29,1,29,2],[30,1,30,2],[52,0,58,0],[52,1,58,1],[52,8,58,8],[59,0,65,0],[59,1,65,1],[59,8,65,8],[37,1,37,5],[38,0,44,0],[38,1,44,1],[38,8,44,8],[45,0,51,0],[45,1,51,1],[45,8,51,8],[80,0,86,0],[80,1,86,1],[80,8,86,8],[87,0,93,0],[87,1,93,1],[87,8,93,8],[66,0,72,0],[66,1,72,1],[66,8,72,8],[73,0,79,0],[73,1,79,1],[73,8,79,8],[108,1,108,5],[109,0,113,0],[109,1,113,1],[109,3,113,3],[109,4,113,4],[109,5,113,5],[94,0,100,0],[94,1,100,1],[94,8,100,8],[101,0,107,0],[101,1,107,1],[101,8,107,8],[109,6,113,6],[109,7,113,7],[109,8,113,8],[114,0,118,0],[114,1,118,1],[114,3,118,3],[114,4,118,4],[114,5,118,5],[114,6,118,6],[114,7,118,7],[114,8,118,8],[119,0,123,0],[119,1,123,1],[119,3,123,3],[119,4,123,4],[119,5,123,5],[119,6,123,6],[119,7,123,7],[119,8,123,8],[124,7,128,7],[124,8,128,8],[129,0,133,0],[129,1,133,1],[129,3,133,3],[129,4,133,4],[129,5,133,5],[129,6,133,6],[129,7,133,7],[129,8,133,8],[124,0,128,0],[124,1,128,1],[124,3,128,3],[124,4,128,4],[124,5,128,5],[124,6,128,6],[134,7,138,7],[134,8,138,8],[139,0,143,0],[139,1,143,1],[139,3,143,3],[139,4,143,4],[139,5,143,5],[139,6,143,6],[139,7,143,7],[139,8,143,8],[134,0,138,0],[134,1,138,1],[134,3,138,3],[134,4,138,4],[134,5,138,5],[134,6,138,6],[144,7,148,7],[144,8,148,8],[149,0,153,0],[149,1,153,1],[149,3,153,3],[149,4,153,4],[149,5,153,5],[149,6,153,6],[149,7,153,7],[149,8,153,8],[144,0,148,0],[144,1,148,1],[144,3,148,3],[144,4,148,4],[144,5,148,5],[144,6,148,6],[154,7,158,7],[154,8,158,8],[159,0,159,5],[154,0,158,0],[154,1,158,1],[154,3,158,3],[154,4,158,4],[154,5,158,5],[154,6,158,6]]}
[null,null,"Pasirinkite veiklos tipą:"]
[null,null,"Fizinio rodiklio Nr.:"]
["Fizinio rodiklio pavadinimas:"]
[null,null,"Fizinio rodiklio matavimo vnt.:",null,null,"Fizinio rodiklio vnt. skaičius:"]
["Juridinis asmuo (pareiškėjas, partneris), atsakingas už fizinį rodiklį:"]
[null,null,"Vykdytojo tipas:"]
[null,null,"Finansavimo intensyvumas:",null,null,null,"Pasirinkite biudžeto išlaidų kategoriją:","Visos"]
[]
["Eil. Nr.","Išlaidų kategorijos pavadinimas",null,"Matavimo vnt.","Kiekis","Vieneto kaina be PVM, Eur","Tinkamų finansuoti išlaidų suma be PVM, Eur","Finansavimo suma, Eur","Išlaidų pagrindimo dokumentų pavadinimas, data ir Nr."]
[5,"PROJEKTO VYKDYMAS",null,null,null,null,{"$f":"G11+G22+G38+G109","v":0},{"$f":"H11+H22+H109+H38","v":0}]
["5.1","Produkto sertifikavimo išlaidos",null,null,null,null,{"$f":"SUM(G12:G21)","v":0},{"$f":"SUM(H12:H21)","v":0}]
["5.1.1","Paslaugos pavadinimas",null,null,null,null,{"$f":"ROUND(E12*F12,2)","v":0},{"$f":"ROUND(G12*$D$7,2)","v":0}]
["5.1.2","Paslaugos pavadinimas",null,null,null,null,0,0]
["5.1.3","Paslaugos pavadinimas",null,null,null,null,0,0]
["5.1.4","Paslaugos pavadinimas",null,null,null,null,0,0]
["5.1.5","Paslaugos pavadinimas",null,null,null,null,0,0]
["5.1.6","Paslaugos pavadinimas",null,null,null,null,0,0]
["5.1.7","Paslaugos pavadinimas",null,null,null,null,0,0]
["5.1.8","Paslaugos pavadinimas",null,null,null,null,0,0]
["5.1.9","Paslaugos pavadinimas",null,null,null,null,0,0]
["5.1.10","Paslaugos pavadinimas",null,null,null,null,0,0]
["5.2","Sertifikavimo paslaugų pirkimo išlaidos",null,null,null,null,{"$f":"SUM(G23:G37)","v":0},{"$f":"SUM(H23:H37)","v":0}]
["5.2.1","Išlaidų pavadinimas",null,null,null,null,{"$f":"ROUND(E23*F23,2)","v":0},{"$f":"ROUND(G23*$D$7,2)","v":0}]
["5.2.2","Išlaidų pavadinimas",null,null,null,null,{"$f":"ROUND(E24*F24,2)","v":0},{"$f":"ROUND(G24*$D$7,2)","v":0}]
["5.2.3","Išlaidų pavadinimas",null,null,null,null,{"$f":"ROUND(E25*F25,2)","v":0},{"$f":"ROUND(G25*$D$7,2)","v":0}]
["5.2.4","Išlaidų pavadinimas",null,null,null,null,{"$f":"ROUND(E26*F26,2)","v":0},{"$f":"ROUND(G26*$D$7,2)","v":0}]
["5.2.5","Išlaidų pavadinimas",null,null,null,null,{"$f":"ROUND(E27*F27,2)","v":0},{"$f":"ROUND(G27*$D$7,2)","v":0}]
["5.2.6","Išlaidų pavadinimas",null,null,null,null,0,0]
["5.2.7","Išlaidų pavadinimas",null,null,null,null,0,0]
["5.2.8","Išlaidų pavadinimas",null,null,null,null,0,0]
["5.2.9","Išlaidų pavadinimas",null,null,null,null,0,0]
["5.2.10","Išlaidų pavadinimas",null,null,null,null,0,0]
["5.2.11","Išlaidų pavadinimas",null,null,null,null,0,0]
["5.2.12","Išlaidų pavadinimas",null,null,null,null,0,0]
["5.2.13","Išlaidų pavadinimas",null,null,null,null,0,0]
["5.2.14","Išlaidų pavadinimas",null,null,null,null,0,0]
["5.2.15","Išlaidų pavadinimas",null,null,null,null,0,0]
["5.3","Projektą vykdančio personalo komandiruočių išlaidos",null,null,null,null,{"$f":"SUM(G39,G46,G53,G60,G67,G74,G81,G88,G95,G102)","v":0},{"$f":"SUM(H39,H46,H53,H60,H67,H74,H81,H88,H95,H102)","v":0}]
["5.3.1","Komandiruotės pavadinimas, vieta, trukmė dienomis, vykstančių asmenų skaičius","Iš viso komandiruotei",null,null,null,{"$f":"SUM(G40:G45)","v":0},{"$f":"ROUND(G39*$D$7,2)","v":0}]
[null,null,"Dienpinigiai",null,null,null,{"$f":"ROUND(E40*F40,2)","v":0}]
[null,null,"Gyvenamojo ploto nuoma",null,null,null,0]
[null,null,"Kelionės išlaidos",null,null,null,0]
[null,null,"Dalyvavimo mokestis",null,null,null,0]
[null,null,"Kitos išlaidų pavadinimas",null,null,null,0]
[null,null,"Kitos išlaidų pavadinimas",null,null,null,0]
["5.3.2","Komandiruotės pavadinimas, vieta, trukmė dienomis, vykstančių asmenų skaičius","Iš viso komandiruotei",null,null,null,{"$f":"SUM(G47:G52)","v":0},{"$f":"ROUND(G46*$D$7,2)","v":0}]
[null,null,"Dienpinigiai",null,null,null,{"$f":"ROUND(E47*F47,2)","v":0}]
[null,null,"Gyvenamojo ploto nuoma",null,null,null,0]
[null,null,"Kelionės išlaidos",null,null,null,0]
[null,null,"Dalyvavimo mokestis",null,null,null,0]
[null,null,"Kitos išlaidų pavadinimas",null,null,null,0]
[null,null,"Kitos išlaidų pavadinimas",null,null,null,0]
["5.3.3","Komandiruotės pavadinimas, vieta, trukmė dienomis, vykstančių asmenų skaičius","Iš viso komandiruotei",null,null,null,{"$f":"SUM(G54:G59)","v":0},{"$f":"ROUND(G53*$D$7,2)","v":0}]
[null,null,"Dienpinigiai",null,null,null,{"$f":"ROUND(E54*F54,2)","v":0}]
[null,null,"Gyvenamojo ploto nuoma",null,null,null,0]
[null,null,"Kelionės išlaidos",null,null,null,0]
[null,null,"Dalyvavimo mokestis",null,null,null,0]
[null,null,"Kitos išlaidų pavadinimas",null,null,null,0]
[null,null,"Kitos išlaidų pavadinimas",null,null,null,0]
["5.3.4","Komandiruotės pavadinimas, vieta, trukmė dienomis, vykstančių asmenų skaičius","Iš viso komandiruotei",null,null,null,{"$f":"SUM(G61:G66)","v":0},{"$f":"ROUND(G60*$D$7,2)","v":0}]
[null,null,"Dienpinigiai",null,null,null,{"$f":"ROUND(E61*F61,2)","v":0}]
[null,null,"Gyvenamojo ploto nuoma",null,null,null,0]
[null,null,"Kelionės išlaidos",null,null,null,0]
[null,null,"Dalyvavimo mokestis",null,null,null,0]
[null,null,"Kitos išlaidų pavadinimas",null,null,null,0]
[null,null,"Kitos išlaidų pavadinimas",null,null,null,0]
["5.3.5","Komandiruotės pavadinimas, vieta, trukmė dienomis, vykstančių asmenų skaičius","Iš viso komandiruotei",null,null,null,{"$f":"SUM(G68:G73)","v":0},{"$f":"ROUND(G67*$D$7,2)","v":0}]
[null,null,"Dienpinigiai",null,null,null,{"$f":"ROUND(E68*F68,2)","v":0}]
[null,null,"Gyvenamojo ploto nuoma",null,null,null,0]
[null,null,"Kelionės išlaidos",null,null,null,0]
[null,null,"Dalyvavimo mokestis",null,null,null,0]
[null,null,"Kitos išlaidų pavadinimas",null,null,null,0]
[null,null,"Kitos išlaidų pavadinimas",null,null,null,0]
["5.3.6","Komandiruotės pavadinimas, vieta, trukmė dienomis, vykstančių asmenų skaičius","Iš viso komandiruotei",null,null,null,{"$f":"SUM(G75:G80)","v":0},{"$f":"ROUND(G74*$D$7,2)","v":0}]
[null,null,"Dienpinigiai",null,null,null,{"$f":"ROUND(E75*F75,2)","v":0}]
[null,null,"Gyvenamojo ploto nuoma",null,null,null,0]
[null,null,"Kelionės išlaidos",null,null,null,0]
[null,null,"Dalyvavimo mokestis",null,null,null,0]
[null,null,"Kitos išlaidų pavadinimas",null,null,null,0]
[null,null,"Kitos išlaidų pavadinimas",null,null,null,0]
["5.3.7","Komandiruotės pavadinimas, vieta, trukmė dienomis, vykstančių asmenų skaičius","Iš viso komandiruotei",null,null,null,{"$f":"SUM(G82:G87)","v":0},{"$f":"ROUND(G81*$D$7,2)","v":0}]
[null,null,"Dienpinigiai",null,null,null,{"$f":"ROUND(E82*F82,2)","v":0}]
[null,null,"Gyvenamojo ploto nuoma",null,null,null,0]
[null,null,"Kelionės išlaidos",null,null,null,0]
[null,null,"Dalyvavimo mokestis",null,null,null,0]
[null,null,"Kitos išlaidų pavadinimas",null,null,null,0]
[null,null,"Kitos išlaidų pavadinimas",null,null,null,0]
["5.3.8","Komandiruotės pavadinimas, vieta, trukmė dienomis, vykstančių asmenų skaičius","Iš viso komandiruotei",null,null,null,{"$f":"SUM(G89:G94)","v":0},{"$f":"ROUND(G88*$D$7,2)","v":0}]
[null,null,"Dienpinigiai",null,null,null,{"$f":"ROUND(E89*F89,2)","v":0}]
[null,null,"Gyvenamojo ploto nuoma",null,null,null,0]
[null,null,"Kelionės išlaidos",null,null,null,0]
[null,null,"Dalyvavimo mokestis",null,null,null,0]
[null,null,"Kitos išlaidų pavadinimas",null,null,null,0]
[null,null,"Kitos išlaidų pavadinimas",null,null,null,0]
["5.3.9","Komandiruotės pavadinimas, vieta, trukmė dienomis, vykstančių asmenų skaičius","Iš viso komandiruotei",null,null,null,{"$f":"SUM(G96:G101)","v":0},{"$f":"ROUND(G95*$D$7,2)","v":0}]
[null,null,"Dienpinigiai",null,null,null,{"$f":"ROUND(E96*F96,2)","v":0}]
[null,null,"Gyvenamojo ploto nuoma",null,null,null,0]
[null,null,"Kelionės išlaidos",null,null,null,0]
[null,null,"Dalyvavimo mokestis",null,null,null,0]
[null,null,"Kitos išlaidų pavadinimas",null,null,null,0]
[null,null,"Kitos išlaidų pavadinimas",null,null,null,0]
["5.3.10","Komandiruotės pavadinimas, vieta, trukmė dienomis, vykstančių asmenų skaičius","Iš viso komandiruotei",null,null,null,{"$f":"SUM(G103:G108)","v":0},{"$f":"ROUND(G102*$D$7,2)","v":0}]
[null,null,"Dienpinigiai",null,null,null,{"$f":"ROUND(E103*F103,2)","v":0}]
[null,null,"Gyvenamojo ploto nuoma",null,null,null,0]
[null,null,"Kelionės išlaidos",null,null,null,0]
[null,null,"Dalyvavimo mokestis",null,null,null,0]
[null,null,"Kitos išlaidų pavadinimas",null,null,null,0]
[null,null,"Kitos išlaidų pavadinimas",null,null,null,0]
["5.4","Projektą vykdančio personalo darbo užmokestis ir išlaidos su darbo santykiais susijusiems darbdavio įsipareigojimams",null,null,null,null,{"$f":"SUM(G110:G159)","v":0},{"$f":"SUM(H110:H159)","v":0},null,null,"Faktiškai gaunamas darbo užmokesti už 1 valandą pagal  pastarųjų 6 mėn. vidurkį, Eur"]
["5.4.1","Pareigybės pavadinimas","Darbuotojo vardas pavardė","val.",null,{"$f":"IFERROR(ROUND(AVERAGE(K110:K114),2),\"0\")","v":"0"},{"$f":"ROUND(E110*F110,2)","v":0},{"$f":"ROUND(G110*$D$7,2)","v":0}]
[null,null,"Darbuotojo vardas pavardė"]
[null,null,"Darbuotojo vardas pavardė"]
[null,null,"Darbuotojo vardas pavardė"]
[null,null,"Darbuotojo vardas pavardė"]
["5.4.2","Pareigybės pavadinimas","Darbuotojo vardas pavardė","val.",null,{"$f":"IFERROR(ROUND(AVERAGE(K115:K119),2),\"0\")","v":"0"},{"$f":"ROUND(E115*F115,2)","v":0},{"$f":"ROUND(G115*$D$7,2)","v":0}]
[null,null,"Darbuotojo vardas pavardė"]
[null,null,"Darbuotojo vardas pavardė"]
[null,null,"Darbuotojo vardas pavardė"]
[null,null,"Darbuotojo vardas pavardė"]
["5.4.3","Pareigybės pavadinimas","Darbuotojo vardas pavardė","val.",null,{"$f":"IFERROR(ROUND(AVERAGE(K120:K124),2),\"0\")","v":"0"},{"$f":"ROUND(E120*F120,2)","v":0},{"$f":"ROUND(G120*$D$7,2)","v":0}]
[null,null,"Darbuotojo vardas pavardė"]
[null,null,"Darbuotojo vardas pavardė"]
[null,null,"Darbuotojo vardas pavardė"]
[null,null,"Darbuotojo vardas pavardė"]
["5.4.4","Pareigybės pavadinimas","Darbuotojo vardas pavardė","val.",null,{"$f":"IFERROR(ROUND(AVERAGE(K125:K129),2),\"0\")","v":"0"},{"$f":"ROUND(E125*F125,2)","v":0},{"$f":"ROUND(G125*$D$7,2)","v":0}]
[null,null,"Darbuotojo vardas pavardė"]
[null,null,"Darbuotojo vardas pavardė"]
[null,null,"Darbuotojo vardas pavardė"]
[null,null,"Darbuotojo vardas pavardė"]
["5.4.5","Pareigybės pavadinimas","Darbuotojo vardas pavardė","val.",null,{"$f":"IFERROR(ROUND(AVERAGE(K130:K134),2),\"0\")","v":"0"},{"$f":"ROUND(E130*F130,2)","v":0},{"$f":"ROUND(G130*$D$7,2)","v":0}]
[null,null,"Darbuotojo vardas pavardė"]
[null,null,"Darbuotojo vardas pavardė"]
[null,null,"Darbuotojo vardas pavardė"]
[null,null,"Darbuotojo vardas pavardė"]
["5.4.6","Pareigybės pavadinimas","Darbuotojo vardas pavardė","val.",null,{"$f":"IFERROR(ROUND(AVERAGE(K135:K139),2),\"0\")","v":"0"},{"$f":"ROUND(E135*F135,2)","v":0},{"$f":"ROUND(G135*$D$7,2)","v":0}]
[null,null,"Darbuotojo vardas pavardė"]
[null,null,"Darbuotojo vardas pavardė"]
[null,null,"Darbuotojo vardas pavardė"]
[null,null,"Darbuotojo vardas pavardė"]
["5.4.7","Pareigybės pavadinimas","Darbuotojo vardas pavardė","val.",null,{"$f":"IFERROR(ROUND(AVERAGE(K140:K144),2),\"0\")","v":"0"},{"$f":"ROUND(E140*F140,2)","v":0},{"$f":"ROUND(G140*$D$7,2)","v":0}]
[null,null,"Darbuotojo vardas pavardė"]
[null,null,"Darbuotojo vardas pavardė"]
[null,null,"Darbuotojo vardas pavardė"]
[null,null,"Darbuotojo vardas pavardė"]
["5.4.8","Pareigybės pavadinimas","Darbuotojo vardas pavardė","val.",null,{"$f":"IFERROR(ROUND(AVERAGE(K145:K149),2),\"0\")","v":"0"},{"$f":"ROUND(E145*F145,2)","v":0},{"$f":"ROUND(G145*$D$7,2)","v":0}]
[null,null,"Darbuotojo vardas pavardė"]
[null,null,"Darbuotojo vardas pavardė"]
[null,null,"Darbuotojo vardas pavardė"]
[null,null,"Darbuotojo vardas pavardė"]
["5.4.9","Pareigybės pavadinimas","Darbuotojo vardas pavardė","val.",null,{"$f":"IFERROR(ROUND(AVERAGE(K150:K154),2),\"0\")","v":"0"},{"$f":"ROUND(E150*F150,2)","v":0},{"$f":"ROUND(G150*$D$7,2)","v":0}]
[null,null,"Darbuotojo vardas pavardė"]
[null,null,"Darbuotojo vardas pavardė"]
[null,null,"Darbuotojo vardas pavardė"]
[null,null,"Darbuotojo vardas pavardė"]
["5.4.10","Pareigybės pavadinimas","Darbuotojo vardas pavardė","val.",null,{"$f":"IFERROR(ROUND(AVERAGE(K155:K159),2),\"0\")","v":"0"},{"$f":"ROUND(E155*F155,2)","v":0},{"$f":"ROUND(G155*$D$7,2)","v":0}]
[null,null,"Darbuotojo vardas pavardė"]
[null,null,"Darbuotojo vardas pavardė"]
[null,null,"Darbuotojo vardas pavardė"]
[null,null,"Darbuotojo vardas pavardė"]
["Iš viso tinkamų finansuoti išlaidų:",null,null,null,null,null,{"$f":"G10","v":0},{"$f":"H10","v":0}]

{"sheet":"4","index":5,"n_rows":160,"n_cols":11,"rows_kept":160,"cut":false,"hidden":false,"merged":[[5,3,5,8],[8,1,8,2],[9,1,9,5],[10,1,10,5],[11,1,11,2],[12,1,12,2],[0,3,0,8],[2,0,2,2],[2,3,2,8],[3,3,3,4],[3,5,3,6],[4,0,4,2],[4,3,4,8],[19,1,19,2],[20,1,20,2],[21,1,21,5],[22,1,22,2],[23,1,23,2],[24,1,24,2],[13,1,13,2],[14,1,14,2],[15,1,15,2],[16,1,16,2],[17,1,17,2],[18,1,18,2],[31,1,31,2],[32,1,32,2],[33,1,33,2],[34,1,34,2],[35,1,35,2],[36,1,36,2],[25,1,25,2],[26,1,26,2],[27,1,27,2],[28,1,28,2],[29,1,29,2],[30,1,30,2],[52,0,58,0],[52,1,58,1],[52,8,58,8],[59,0,65,0],[59,1,65,1],[59,8,65,8],[37,1,37,5],[38,0,44,0],[38,1,44,1],[38,8,44,8],[45,0,51,0],[45,1,51,1],[45,8,51,8],[80,0,86,0],[80,1,86,1],[80,8,86,8],[87,0,93,0],[87,1,93,1],[87,8,93,8],[66,0,72,0],[66,1,72,1],[66,8,72,8],[73,0,79,0],[73,1,79,1],[73,8,79,8],[108,1,108,5],[109,0,113,0],[109,1,113,1],[109,3,113,3],[109,4,113,4],[109,5,113,5],[94,0,100,0],[94,1,100,1],[94,8,100,8],[101,0,107,0],[101,1,107,1],[101,8,107,8],[109,6,113,6],[109,7,113,7],[109,8,113,8],[114,0,118,0],[114,1,118,1],[114,3,118,3],[114,4,118,4],[114,5,118,5],[114,6,118,6],[114,7,118,7],[114,8,118,8],[119,0,123,0],[119,1,123,1],[119,3,123,3],[119,4,123,4],[119,5,123,5],[119,6,123,6],[119,7,123,7],[119,8,123,8],[124,7,128,7],[124,8,128,8],[129,0,133,0],[129,1,133,1],[129,3,133,3],[129,4,133,4],[129,5,133,5],[129,6,133,6],[129,7,133,7],[129,8,133,8],[124,0,128,0],[124,1,128,1],[124,3,128,3],[124,4,128,4],[124,5,128,5],[124,6,128,6],[134,7,138,7],[134,8,138,8],[139,0,143,0],[139,1,143,1],[139,3,143,3],[139,4,143,4],[139,5,143,5],[139,6,143,6],[139,7,143,7],[139,8,143,8],[134,0,138,0],[134,1,138,1],[134,3,138,3],[134,4,138,4],[134,5,138,5],[134,6,138,6],[144,7,148,7],[144,8,148,8],[149,0,153,0],[149,1,153,1],[149,3,153,3],[149,4,153,4],[149,5,153,5],[149,6,153,6],[149,7,153,7],[149,8,153,8],[144,0,148,0],[144,1,148,1],[144,3,148,3],[144,4,148,4],[144,5,148,5],[144,6,148,6],[154,7,158,7],[154,8,158,8],[159,0,159,5],[154,0,158,0],[154,1,158,1],[154,3,158,3],[154,4,158,4],[154,5,158,5],[154,6,158,6]]}
[null,null,"Pasirinkite veiklos tipą:"]
[null,null,"Fizinio rodiklio Nr.:"]
["Fizinio rodiklio pavadinimas:"]
[null,null,"Fizinio rodiklio matavimo vnt.:",null,null,"Fizinio rodiklio vnt. skaičius:"]
["Juridinis asmuo (pareiškėjas, partneris), atsakingas už fizinį rodiklį:"]
[null,null,"Vykdytojo tipas:"]
[null,null,"Finansavimo intensyvumas:",null,null,null,"Pasirinkite biudžeto išlaidų kategoriją:","Visos"]
[]
["Eil. Nr.","Išlaidų kategorijos pavadinimas",null,"Matavimo vnt.","Kiekis","Vieneto kaina be PVM, Eur","Tinkamų finansuoti išlaidų suma be PVM, Eur","Finansavimo suma, Eur","Išlaidų pagrindimo dokumentų pavadinimas, data ir Nr."]
[5,"PROJEKTO VYKDYMAS",null,null,null,null,{"$f":"G11+G22+G38+G109","v":0},{"$f":"H11+H22+H109+H38","v":0}]
["5.1","Produkto sertifikavimo išlaidos",null,null,null,null,{"$f":"SUM(G12:G21)","v":0},{"$f":"SUM(H12:H21)","v":0}]
["5.1.1","Paslaugos pavadinimas",null,null,null,null,{"$f":"ROUND(E12*F12,2)","v":0},{"$f":"ROUND(G12*$D$7,2)","v":0}]
["5.1.2","Paslaugos pavadinimas",null,null,null,null,0,0]
["5.1.3","Paslaugos pavadinimas",null,null,null,null,0,0]
["5.1.4","Paslaugos pavadinimas",null,null,null,null,0,0]
["5.1.5","Paslaugos pavadinimas",null,null,null,null,0,0]
["5.1.6","Paslaugos pavadinimas",null,null,null,null,0,0]
["5.1.7","Paslaugos pavadinimas",null,null,null,null,0,0]
["5.1.8","Paslaugos pavadinimas",null,null,null,null,0,0]
["5.1.9","Paslaugos pavadinimas",null,null,null,null,0,0]
["5.1.10","Paslaugos pavadinimas",null,null,null,null,0,0]
["5.2","Sertifikavimo paslaugų pirkimo išlaidos",null,null,null,null,{"$f":"SUM(G23:G37)","v":0},{"$f":"SUM(H23:H37)","v":0}]
["5.2.1","Išlaidų pavadinimas",null,null,null,null,{"$f":"ROUND(E23*F23,2)","v":0},{"$f":"ROUND(G23*$D$7,2)","v":0}]
["5.2.2","Išlaidų pavadinimas",null,null,null,null,{"$f":"ROUND(E24*F24,2)","v":0},{"$f":"ROUND(G24*$D$7,2)","v":0}]
["5.2.3","Išlaidų pavadinimas",null,null,null,null,{"$f":"ROUND(E25*F25,2)","v":0},{"$f":"ROUND(G25*$D$7,2)","v":0}]
["5.2.4","Išlaidų pavadinimas",null,null,null,null,{"$f":"ROUND(E26*F26,2)","v":0},{"$f":"ROUND(G26*$D$7,2)","v":0}]
["5.2.5","Išlaidų pavadinimas",null,null,null,null,{"$f":"ROUND(E27*F27,2)","v":0},{"$f":"ROUND(G27*$D$7,2)","v":0}]
["5.2.6","Išlaidų pavadinimas",null,null,null,null,0,0]
["5.2.7","Išlaidų pavadinimas",null,null,null,null,0,0]
["5.2.8","Išlaidų pavadinimas",null,null,null,null,0,0]
["5.2.9","Išlaidų pavadinimas",null,null,null,null,0,0]
["5.2.10","Išlaidų pavadinimas",null,null,null,null,0,0]
["5.2.11","Išlaidų pavadinimas",null,null,null,null,0,0]
["5.2.12","Išlaidų pavadinimas",null,null,null,null,0,0]
["5.2.13","Išlaidų pavadinimas",null,null,null,null,0,0]
["5.2.14","Išlaidų pavadinimas",null,null,null,null,0,0]
["5.2.15","Išlaidų pavadinimas",null,null,null,null,0,0]
["5.3","Projektą vykdančio personalo komandiruočių išlaidos",null,null,null,null,{"$f":"SUM(G39,G46,G53,G60,G67,G74,G81,G88,G95,G102)","v":0},{"$f":"SUM(H39,H46,H53,H60,H67,H74,H81,H88,H95,H102)","v":0}]
["5.3.1","Komandiruotės pavadinimas, vieta, trukmė dienomis, vykstančių asmenų skaičius","Iš viso komandiruotei",null,null,null,{"$f":"SUM(G40:G45)","v":0},{"$f":"ROUND(G39*$D$7,2)","v":0}]
[null,null,"Dienpinigiai",null,null,null,{"$f":"ROUND(E40*F40,2)","v":0}]
[null,null,"Gyvenamojo ploto nuoma",null,null,null,0]
[null,null,"Kelionės išlaidos",null,null,null,0]
[null,null,"Dalyvavimo mokestis",null,null,null,0]
[null,null,"Kitos išlaidų pavadinimas",null,null,null,0]
[null,null,"Kitos išlaidų pavadinimas",null,null,null,0]
["5.3.2","Komandiruotės pavadinimas, vieta, trukmė dienomis, vykstančių asmenų skaičius","Iš viso komandiruotei",null,null,null,{"$f":"SUM(G47:G52)","v":0},{"$f":"ROUND(G46*$D$7,2)","v":0}]
[null,null,"Dienpinigiai",null,null,null,{"$f":"ROUND(E47*F47,2)","v":0}]
[null,null,"Gyvenamojo ploto nuoma",null,null,null,0]
[null,null,"Kelionės išlaidos",null,null,null,0]
[null,null,"Dalyvavimo mokestis",null,null,null,0]
[null,null,"Kitos išlaidų pavadinimas",null,null,null,0]
[null,null,"Kitos išlaidų pavadinimas",null,null,null,0]
["5.3.3","Komandiruotės pavadinimas, vieta, trukmė dienomis, vykstančių asmenų skaičius","Iš viso komandiruotei",null,null,null,{"$f":"SUM(G54:G59)","v":0},{"$f":"ROUND(G53*$D$7,2)","v":0}]
[null,null,"Dienpinigiai",null,null,null,{"$f":"ROUND(E54*F54,2)","v":0}]
[null,null,"Gyvenamojo ploto nuoma",null,null,null,0]
[null,null,"Kelionės išlaidos",null,null,null,0]
[null,null,"Dalyvavimo mokestis",null,null,null,0]
[null,null,"Kitos išlaidų pavadinimas",null,null,null,0]
[null,null,"Kitos išlaidų pavadinimas",null,null,null,0]
["5.3.4","Komandiruotės pavadinimas, vieta, trukmė dienomis, vykstančių asmenų skaičius","Iš viso komandiruotei",null,null,null,{"$f":"SUM(G61:G66)","v":0},{"$f":"ROUND(G60*$D$7,2)","v":0}]
[null,null,"Dienpinigiai",null,null,null,{"$f":"ROUND(E61*F61,2)","v":0}]
[null,null,"Gyvenamojo ploto nuoma",null,null,null,0]
[null,null,"Kelionės išlaidos",null,null,null,0]
[null,null,"Dalyvavimo mokestis",null,null,null,0]
[null,null,"Kitos išlaidų pavadinimas",null,null,null,0]
[null,null,"Kitos išlaidų pavadinimas",null,null,null,0]
["5.3.5","Komandiruotės pavadinimas, vieta, trukmė dienomis, vykstančių asmenų skaičius","Iš viso komandiruotei",null,null,null,{"$f":"SUM(G68:G73)","v":0},{"$f":"ROUND(G67*$D$7,2)","v":0}]
[null,null,"Dienpinigiai",null,null,null,{"$f":"ROUND(E68*F68,2)","v":0}]
[null,null,"Gyvenamojo ploto nuoma",null,null,null,0]
[null,null,"Kelionės išlaidos",null,null,null,0]
[null,null,"Dalyvavimo mokestis",null,null,null,0]
[null,null,"Kitos išlaidų pavadinimas",null,null,null,0]
[null,null,"Kitos išlaidų pavadinimas",null,null,null,0]
["5.3.6","Komandiruotės pavadinimas, vieta, trukmė dienomis, vykstančių asmenų skaičius","Iš viso komandiruotei",null,null,null,{"$f":"SUM(G75:G80)","v":0},{"$f":"ROUND(G74*$D$7,2)","v":0}]
[null,null,"Dienpinigiai",null,null,null,{"$f":"ROUND(E75*F75,2)","v":0}]
[null,null,"Gyvenamojo ploto nuoma",null,null,null,0]
[null,null,"Kelionės išlaidos",null,null,null,0]
[null,null,"Dalyvavimo mokestis",null,null,null,0]
[null,null,"Kitos išlaidų pavadinimas",null,null,null,0]
[null,null,"Kitos išlaidų pavadinimas",null,null,null,0]
["5.3.7","Komandiruotės pavadinimas, vieta, trukmė dienomis, vykstančių asmenų skaičius","Iš viso komandiruotei",null,null,null,{"$f":"SUM(G82:G87)","v":0},{"$f":"ROUND(G81*$D$7,2)","v":0}]
[null,null,"Dienpinigiai",null,null,null,{"$f":"ROUND(E82*F82,2)","v":0}]
[null,null,"Gyvenamojo ploto nuoma",null,null,null,0]
[null,null,"Kelionės išlaidos",null,null,null,0]
[null,null,"Dalyvavimo mokestis",null,null,null,0]
[null,null,"Kitos išlaidų pavadinimas",null,null,null,0]
[null,null,"Kitos išlaidų pavadinimas",null,null,null,0]
["5.3.8","Komandiruotės pavadinimas, vieta, trukmė dienomis, vykstančių asmenų skaičius","Iš viso komandiruotei",null,null,null,{"$f":"SUM(G89:G94)","v":0},{"$f":"ROUND(G88*$D$7,2)","v":0}]
[null,null,"Dienpinigiai",null,null,null,{"$f":"ROUND(E89*F89,2)","v":0}]
[null,null,"Gyvenamojo ploto nuoma",null,null,null,0]
[null,null,"Kelionės išlaidos",null,null,null,0]
[null,null,"Dalyvavimo mokestis",null,null,null,0]
[null,null,"Kitos išlaidų pavadinimas",null,null,null,0]
[null,null,"Kitos išlaidų pavadinimas",null,null,null,0]
["5.3.9","Komandiruotės pavadinimas, vieta, trukmė dienomis, vykstančių asmenų skaičius","Iš viso komandiruotei",null,null,null,{"$f":"SUM(G96:G101)","v":0},{"$f":"ROUND(G95*$D$7,2)","v":0}]
[null,null,"Dienpinigiai",null,null,null,{"$f":"ROUND(E96*F96,2)","v":0}]
[null,null,"Gyvenamojo ploto nuoma",null,null,null,0]
[null,null,"Kelionės išlaidos",null,null,null,0]
[null,null,"Dalyvavimo mokestis",null,null,null,0]
[null,null,"Kitos išlaidų pavadinimas",null,null,null,0]
[null,null,"Kitos išlaidų pavadinimas",null,null,null,0]
["5.3.10","Komandiruotės pavadinimas, vieta, trukmė dienomis, vykstančių asmenų skaičius","Iš viso komandiruotei",null,null,null,{"$f":"SUM(G103:G108)","v":0},{"$f":"ROUND(G102*$D$7,2)","v":0}]
[null,null,"Dienpinigiai",null,null,null,{"$f":"ROUND(E103*F103,2)","v":0}]
[null,null,"Gyvenamojo ploto nuoma",null,null,null,0]
[null,null,"Kelionės išlaidos",null,null,null,0]
[null,null,"Dalyvavimo mokestis",null,null,null,0]
[null,null,"Kitos išlaidų pavadinimas",null,null,null,0]
[null,null,"Kitos išlaidų pavadinimas",null,null,null,0]
["5.4","Projektą vykdančio personalo darbo užmokestis ir išlaidos su darbo santykiais susijusiems darbdavio įsipareigojimams",null,null,null,null,{"$f":"SUM(G110:G159)","v":0},{"$f":"SUM(H110:H159)","v":0},null,null,"Faktiškai gaunamas darbo užmokesti už 1 valandą pagal  pastarųjų 6 mėn. vidurkį, Eur"]
["5.4.1","Pareigybės pavadinimas","Darbuotojo vardas pavardė","val.",null,{"$f":"IFERROR(ROUND(AVERAGE(K110:K114),2),\"0\")","v":"0"},{"$f":"ROUND(E110*F110,2)","v":0},{"$f":"ROUND(G110*$D$7,2)","v":0}]
[null,null,"Darbuotojo vardas pavardė"]
[null,null,"Darbuotojo vardas pavardė"]
[null,null,"Darbuotojo vardas pavardė"]
[null,null,"Darbuotojo vardas pavardė"]
["5.4.2","Pareigybės pavadinimas","Darbuotojo vardas pavardė","val.",null,{"$f":"IFERROR(ROUND(AVERAGE(K115:K119),2),\"0\")","v":"0"},{"$f":"ROUND(E115*F115,2)","v":0},{"$f":"ROUND(G115*$D$7,2)","v":0}]
[null,null,"Darbuotojo vardas pavardė"]
[null,null,"Darbuotojo vardas pavardė"]
[null,null,"Darbuotojo vardas pavardė"]
[null,null,"Darbuotojo vardas pavardė"]
["5.4.3","Pareigybės pavadinimas","Darbuotojo vardas pavardė","val.",null,{"$f":"IFERROR(ROUND(AVERAGE(K120:K124),2),\"0\")","v":"0"},{"$f":"ROUND(E120*F120,2)","v":0},{"$f":"ROUND(G120*$D$7,2)","v":0}]
[null,null,"Darbuotojo vardas pavardė"]
[null,null,"Darbuotojo vardas pavardė"]
[null,null,"Darbuotojo vardas pavardė"]
[null,null,"Darbuotojo vardas pavardė"]
["5.4.4","Pareigybės pavadinimas","Darbuotojo vardas pavardė","val.",null,{"$f":"IFERROR(ROUND(AVERAGE(K125:K129),2),\"0\")","v":"0"},{"$f":"ROUND(E125*F125,2)","v":0},{"$f":"ROUND(G125*$D$7,2)","v":0}]
[null,null,"Darbuotojo vardas pavardė"]
[null,null,"Darbuotojo vardas pavardė"]
[null,null,"Darbuotojo vardas pavardė"]
[null,null,"Darbuotojo vardas pavardė"]
["5.4.5","Pareigybės pavadinimas","Darbuotojo vardas pavardė","val.",null,{"$f":"IFERROR(ROUND(AVERAGE(K130:K134),2),\"0\")","v":"0"},{"$f":"ROUND(E130*F130,2)","v":0},{"$f":"ROUND(G130*$D$7,2)","v":0}]
[null,null,"Darbuotojo vardas pavardė"]
[null,null,"Darbuotojo vardas pavardė"]
[null,null,"Darbuotojo vardas pavardė"]
[null,null,"Darbuotojo vardas pavardė"]
["5.4.6","Pareigybės pavadinimas","Darbuotojo vardas pavardė","val.",null,{"$f":"IFERROR(ROUND(AVERAGE(K135:K139),2),\"0\")","v":"0"},{"$f":"ROUND(E135*F135,2)","v":0},{"$f":"ROUND(G135*$D$7,2)","v":0}]
[null,null,"Darbuotojo vardas pavardė"]
[null,null,"Darbuotojo vardas pavardė"]
[null,null,"Darbuotojo vardas pavardė"]
[null,null,"Darbuotojo vardas pavardė"]
["5.4.7","Pareigybės pavadinimas","Darbuotojo vardas pavardė","val.",null,{"$f":"IFERROR(ROUND(AVERAGE(K140:K144),2),\"0\")","v":"0"},{"$f":"ROUND(E140*F140,2)","v":0},{"$f":"ROUND(G140*$D$7,2)","v":0}]
[null,null,"Darbuotojo vardas pavardė"]
[null,null,"Darbuotojo vardas pavardė"]
[null,null,"Darbuotojo vardas pavardė"]
[null,null,"Darbuotojo vardas pavardė"]
["5.4.8","Pareigybės pavadinimas","Darbuotojo vardas pavardė","val.",null,{"$f":"IFERROR(ROUND(AVERAGE(K145:K149),2),\"0\")","v":"0"},{"$f":"ROUND(E145*F145,2)","v":0},{"$f":"ROUND(G145*$D$7,2)","v":0}]
[null,null,"Darbuotojo vardas pavardė"]
[null,null,"Darbuotojo vardas pavardė"]
[null,null,"Darbuotojo vardas pavardė"]
[null,null,"Darbuotojo vardas pavardė"]
["5.4.9","Pareigybės pavadinimas","Darbuotojo vardas pavardė","val.",null,{"$f":"IFERROR(ROUND(AVERAGE(K150:K154),2),\"0\")","v":"0"},{"$f":"ROUND(E150*F150,2)","v":0},{"$f":"ROUND(G150*$D$7,2)","v":0}]
[null,null,"Darbuotojo vardas pavardė"]
[null,null,"Darbuotojo vardas pavardė"]
[null,null,"Darbuotojo vardas pavardė"]
[null,null,"Darbuotojo vardas pavardė"]
["5.4.10","Pareigybės pavadinimas","Darbuotojo vardas pavardė","val.",null,{"$f":"IFERROR(ROUND(AVERAGE(K155:K159),2),\"0\")","v":"0"},{"$f":"ROUND(E155*F155,2)","v":0},{"$f":"ROUND(G155*$D$7,2)","v":0}]
[null,null,"Darbuotojo vardas pavardė"]
[null,null,"Darbuotojo vardas pavardė"]
[null,null,"Darbuotojo vardas pavardė"]
[null,null,"Darbuotojo vardas pavardė"]
["Iš viso tinkamų finansuoti išlaidų:",null,null,null,null,null,{"$f":"G10","v":0},{"$f":"H10","v":0}]

{"sheet":"5","index":6,"n_rows":160,"n_cols":11,"rows_kept":160,"cut":false,"hidden":false,"merged":[[5,3,5,8],[8,1,8,2],[9,1,9,5],[10,1,10,5],[11,1,11,2],[12,1,12,2],[0,3,0,8],[2,0,2,2],[2,3,2,8],[3,3,3,4],[3,5,3,6],[4,0,4,2],[4,3,4,8],[19,1,19,2],[20,1,20,2],[21,1,21,5],[22,1,22,2],[23,1,23,2],[24,1,24,2],[13,1,13,2],[14,1,14,2],[15,1,15,2],[16,1,16,2],[17,1,17,2],[18,1,18,2],[31,1,31,2],[32,1,32,2],[33,1,33,2],[34,1,34,2],[35,1,35,2],[36,1,36,2],[25,1,25,2],[26,1,26,2],[27,1,27,2],[28,1,28,2],[29,1,29,2],[30,1,30,2],[52,0,58,0],[52,1,58,1],[52,8,58,8],[59,0,65,0],[59,1,65,1],[59,8,65,8],[37,1,37,5],[38,0,44,0],[38,1,44,1],[38,8,44,8],[45,0,51,0],[45,1,51,1],[45,8,51,8],[80,0,86,0],[80,1,86,1],[80,8,86,8],[87,0,93,0],[87,1,93,1],[87,8,93,8],[66,0,72,0],[66,1,72,1],[66,8,72,8],[73,0,79,0],[73,1,79,1],[73,8,79,8],[108,1,108,5],[109,0,113,0],[109,1,113,1],[109,3,113,3],[109,4,113,4],[109,5,113,5],[94,0,100,0],[94,1,100,1],[94,8,100,8],[101,0,107,0],[101,1,107,1],[101,8,107,8],[109,6,113,6],[109,7,113,7],[109,8,113,8],[114,0,118,0],[114,1,118,1],[114,3,118,3],[114,4,118,4],[114,5,118,5],[114,6,118,6],[114,7,118,7],[114,8,118,8],[119,0,123,0],[119,1,123,1],[119,3,123,3],[119,4,123,4],[119,5,123,5],[119,6,123,6],[119,7,123,7],[119,8,123,8],[124,7,128,7],[124,8,128,8],[129,0,133,0],[129,1,133,1],[129,3,133,3],[129,4,133,4],[129,5,133,5],[129,6,133,6],[129,7,133,7],[129,8,133,8],[124,0,128,0],[124,1,128,1],[124,3,128,3],[124,4,128,4],[124,5,128,5],[124,6,128,6],[134,7,138,7],[134,8,138,8],[139,0,143,0],[139,1,143,1],[139,3,143,3],[139,4,143,4],[139,5,143,5],[139,6,143,6],[139,7,143,7],[139,8,143,8],[134,0,138,0],[134,1,138,1],[134,3,138,3],[134,4,138,4],[134,5,138,5],[134,6,138,6],[144,7,148,7],[144,8,148,8],[149,0,153,0],[149,1,153,1],[149,3,153,3],[149,4,153,4],[149,5,153,5],[149,6,153,6],[149,7,153,7],[149,8,153,8],[144,0,148,0],[144,1,148,1],[144,3,148,3],[144,4,148,4],[144,5,148,5],[144,6,148,6],[154,7,158,7],[154,8,158,8],[159,0,159,5],[154,0,158,0],[154,1,158,1],[154,3,158,3],[154,4,158,4],[154,5,158,5],[154,6,158,6]]}
[null,null,"Pasirinkite veiklos tipą:"]
[null,null,"Fizinio rodiklio Nr.:"]
["Fizinio rodiklio pavadinimas:"]
[null,null,"Fizinio rodiklio matavimo vnt.:",null,null,"Fizinio rodiklio vnt. skaičius:"]
["Juridinis asmuo (pareiškėjas, partneris), atsakingas už fizinį rodiklį:"]
[null,null,"Vykdytojo tipas:"]
[null,null,"Finansavimo intensyvumas:",null,null,null,"Pasirinkite biudžeto išlaidų kategoriją:","Visos"]
[]
["Eil. Nr.","Išlaidų kategorijos pavadinimas",null,"Matavimo vnt.","Kiekis","Vieneto kaina be PVM, Eur","Tinkamų finansuoti išlaidų suma be PVM, Eur","Finansavimo suma, Eur","Išlaidų pagrindimo dokumentų pavadinimas, data ir Nr."]
[5,"PROJEKTO VYKDYMAS",null,null,null,null,{"$f":"G11+G22+G38+G109","v":0},{"$f":"H11+H22+H109+H38","v":0}]
["5.1","Produkto sertifikavimo išlaidos",null,null,null,null,{"$f":"SUM(G12:G21)","v":0},{"$f":"SUM(H12:H21)","v":0}]
["5.1.1","Paslaugos pavadinimas",null,null,null,null,{"$f":"ROUND(E12*F12,2)","v":0},{"$f":"ROUND(G12*$D$7,2)","v":0}]
["5.1.2","Paslaugos pavadinimas",null,null,null,null,0,0]
["5.1.3","Paslaugos pavadinimas",null,null,null,null,0,0]
["5.1.4","Paslaugos pavadinimas",null,null,null,null,0,0]
["5.1.5","Paslaugos pavadinimas",null,null,null,null,0,0]
["5.1.6","Paslaugos pavadinimas",null,null,null,null,0,0]
["5.1.7","Paslaugos pavadinimas",null,null,null,null,0,0]
["5.1.8","Paslaugos pavadinimas",null,null,null,null,0,0]
["5.1.9","Paslaugos pavadinimas",null,null,null,null,0,0]
["5.1.10","Paslaugos pavadinimas",null,null,null,null,0,0]
["5.2","Sertifikavimo paslaugų pirkimo išlaidos",null,null,null,null,{"$f":"SUM(G23:G37)","v":0},{"$f":"SUM(H23:H37)","v":0}]
["5.2.1","Išlaidų pavadinimas",null,null,null,null,{"$f":"ROUND(E23*F23,2)","v":0},{"$f":"ROUND(G23*$D$7,2)","v":0}]
["5.2.2","Išlaidų pavadinimas",null,null,null,null,{"$f":"ROUND(E24*F24,2)","v":0},{"$f":"ROUND(G24*$D$7,2)","v":0}]
["5.2.3","Išlaidų pavadinimas",null,null,null,null,{"$f":"ROUND(E25*F25,2)","v":0},{"$f":"ROUND(G25*$D$7,2)","v":0}]
["5.2.4","Išlaidų pavadinimas",null,null,null,null,{"$f":"ROUND(E26*F26,2)","v":0},{"$f":"ROUND(G26*$D$7,2)","v":0}]
["5.2.5","Išlaidų pavadinimas",null,null,null,null,{"$f":"ROUND(E27*F27,2)","v":0},{"$f":"ROUND(G27*$D$7,2)","v":0}]
["5.2.6","Išlaidų pavadinimas",null,null,null,null,0,0]
["5.2.7","Išlaidų pavadinimas",null,null,null,null,0,0]
["5.2.8","Išlaidų pavadinimas",null,null,null,null,0,0]
["5.2.9","Išlaidų pavadinimas",null,null,null,null,0,0]
["5.2.10","Išlaidų pavadinimas",null,null,null,null,0,0]
["5.2.11","Išlaidų pavadinimas",null,null,null,null,0,0]
["5.2.12","Išlaidų pavadinimas",null,null,null,null,0,0]
["5.2.13","Išlaidų pavadinimas",null,null,null,null,0,0]
["5.2.14","Išlaidų pavadinimas",null,null,null,null,0,0]
["5.2.15","Išlaidų pavadinimas",null,null,null,null,0,0]
["5.3","Projektą vykdančio personalo komandiruočių išlaidos",null,null,null,null,{"$f":"SUM(G39,G46,G53,G60,G67,G74,G81,G88,G95,G102)","v":0},{"$f":"SUM(H39,H46,H53,H60,H67,H74,H81,H88,H95,H102)","v":0}]
["5.3.1","Komandiruotės pavadinimas, vieta, trukmė dienomis, vykstančių asmenų skaičius","Iš viso komandiruotei",null,null,null,{"$f":"SUM(G40:G45)","v":0},{"$f":"ROUND(G39*$D$7,2)","v":0}]
[null,null,"Dienpinigiai",null,null,null,{"$f":"ROUND(E40*F40,2)","v":0}]
[null,null,"Gyvenamojo ploto nuoma",null,null,null,0]
[null,null,"Kelionės išlaidos",null,null,null,0]
[null,null,"Dalyvavimo mokestis",null,null,null,0]
[null,null,"Kitos išlaidų pavadinimas",null,null,null,0]
[null,null,"Kitos išlaidų pavadinimas",null,null,null,0]
["5.3.2","Komandiruotės pavadinimas, vieta, trukmė dienomis, vykstančių asmenų skaičius","Iš viso komandiruotei",null,null,null,{"$f":"SUM(G47:G52)","v":0},{"$f":"ROUND(G46*$D$7,2)","v":0}]
[null,null,"Dienpinigiai",null,null,null,{"$f":"ROUND(E47*F47,2)","v":0}]
[null,null,"Gyvenamojo ploto nuoma",null,null,null,0]
[null,null,"Kelionės išlaidos",null,null,null,0]
[null,null,"Dalyvavimo mokestis",null,null,null,0]
[null,null,"Kitos išlaidų pavadinimas",null,null,null,0]
[null,null,"Kitos išlaidų pavadinimas",null,null,null,0]
["5.3.3","Komandiruotės pavadinimas, vieta, trukmė dienomis, vykstančių asmenų skaičius","Iš viso komandiruotei",null,null,null,{"$f":"SUM(G54:G59)","v":0},{"$f":"ROUND(G53*$D$7,2)","v":0}]
[null,null,"Dienpinigiai",null,null,null,{"$f":"ROUND(E54*F54,2)","v":0}]
[null,null,"Gyvenamojo ploto nuoma",null,null,null,0]
[null,null,"Kelionės išlaidos",null,null,null,0]
[null,null,"Dalyvavimo mokestis",null,null,null,0]
[null,null,"Kitos išlaidų pavadinimas",null,null,null,0]
[null,null,"Kitos išlaidų pavadinimas",null,null,null,0]
["5.3.4","Komandiruotės pavadinimas, vieta, trukmė dienomis, vykstančių asmenų skaičius","Iš viso komandiruotei",null,null,null,{"$f":"SUM(G61:G66)","v":0},{"$f":"ROUND(G60*$D$7,2)","v":0}]
[null,null,"Dienpinigiai",null,null,null,{"$f":"ROUND(E61*F61,2)","v":0}]
[null,null,"Gyvenamojo ploto nuoma",null,null,null,0]
[null,null,"Kelionės išlaidos",null,null,null,0]
[null,null,"Dalyvavimo mokestis",null,null,null,0]
[null,null,"Kitos išlaidų pavadinimas",null,null,null,0]
[null,null,"Kitos išlaidų pavadinimas",null,null,null,0]
["5.3.5","Komandiruotės pavadinimas, vieta, trukmė dienomis, vykstančių asmenų skaičius","Iš viso komandiruotei",null,null,null,{"$f":"SUM(G68:G73)","v":0},{"$f":"ROUND(G67*$D$7,2)","v":0}]
[null,null,"Dienpinigiai",null,null,null,{"$f":"ROUND(E68*F68,2)","v":0}]
[null,null,"Gyvenamojo ploto nuoma",null,null,null,0]
[null,null,"Kelionės išlaidos",null,null,null,0]
[null,null,"Dalyvavimo mokestis",null,null,null,0]
[null,null,"Kitos išlaidų pavadinimas",null,null,null,0]
[null,null,"Kitos išlaidų pavadinimas",null,null,null,0]
["5.3.6","Komandiruotės pavadinimas, vieta, trukmė dienomis, vykstančių asmenų skaičius","Iš viso komandiruotei",null,null,null,{"$f":"SUM(G75:G80)","v":0},{"$f":"ROUND(G74*$D$7,2)","v":0}]
[null,null,"Dienpinigiai",null,null,null,{"$f":"ROUND(E75*F75,2)","v":0}]
[null,null,"Gyvenamojo ploto nuoma",null,null,null,0]
[null,null,"Kelionės išlaidos",null,null,null,0]
[null,null,"Dalyvavimo mokestis",null,null,null,0]
[null,null,"Kitos išlaidų pavadinimas",null,null,null,0]
[null,null,"Kitos išlaidų pavadinimas",null,null,null,0]
["5.3.7","Komandiruotės pavadinimas, vieta, trukmė dienomis, vykstančių asmenų skaičius","Iš viso komandiruotei",null,null,null,{"$f":"SUM(G82:G87)","v":0},{"$f":"ROUND(G81*$D$7,2)","v":0}]
[null,null,"Dienpinigiai",null,null,null,{"$f":"ROUND(E82*F82,2)","v":0}]
[null,null,"Gyvenamojo ploto nuoma",null,null,null,0]
[null,null,"Kelionės išlaidos",null,null,null,0]
[null,null,"Dalyvavimo mokestis",null,null,null,0]
[null,null,"Kitos išlaidų pavadinimas",null,null,null,0]
[null,null,"Kitos išlaidų pavadinimas",null,null,null,0]
["5.3.8","Komandiruotės pavadinimas, vieta, trukmė dienomis, vykstančių asmenų skaičius","Iš viso komandiruotei",null,null,null,{"$f":"SUM(G89:G94)","v":0},{"$f":"ROUND(G88*$D$7,2)","v":0}]
[null,null,"Dienpinigiai",null,null,null,{"$f":"ROUND(E89*F89,2)","v":0}]
[null,null,"Gyvenamojo ploto nuoma",null,null,null,0]
[null,null,"Kelionės išlaidos",null,null,null,0]
[null,null,"Dalyvavimo mokestis",null,null,null,0]
[null,null,"Kitos išlaidų pavadinimas",null,null,null,0]
[null,null,"Kitos išlaidų pavadinimas",null,null,null,0]
["5.3.9","Komandiruotės pavadinimas, vieta, trukmė dienomis, vykstančių asmenų skaičius","Iš viso komandiruotei",null,null,null,{"$f":"SUM(G96:G101)","v":0},{"$f":"ROUND(G95*$D$7,2)","v":0}]
[null,null,"Dienpinigiai",null,null,null,{"$f":"ROUND(E96*F96,2)","v":0}]
[null,null,"Gyvenamojo ploto nuoma",null,null,null,0]
[null,null,"Kelionės išlaidos",null,null,null,0]
[null,null,"Dalyvavimo mokestis",null,null,null,0]
[null,null,"Kitos išlaidų pavadinimas",null,null,null,0]
[null,null,"Kitos išlaidų pavadinimas",null,null,null,0]
["5.3.10","Komandiruotės pavadinimas, vieta, trukmė dienomis, vykstančių asmenų skaičius","Iš viso komandiruotei",null,null,null,{"$f":"SUM(G103:G108)","v":0},{"$f":"ROUND(G102*$D$7,2)","v":0}]
[null,null,"Dienpinigiai",null,null,null,{"$f":"ROUND(E103*F103,2)","v":0}]
[null,null,"Gyvenamojo ploto nuoma",null,null,null,0]
[null,null,"Kelionės išlaidos",null,null,null,0]
[null,null,"Dalyvavimo mokestis",null,null,null,0]
[null,null,"Kitos išlaidų pavadinimas",null,null,null,0]
[null,null,"Kitos išlaidų pavadinimas",null,null,null,0]
["5.4","Projektą vykdančio personalo darbo užmokestis ir išlaidos su darbo santykiais susijusiems darbdavio įsipareigojimams",null,null,null,null,{"$f":"SUM(G110:G159)","v":0},{"$f":"SUM(H110:H159)","v":0},null,null,"Faktiškai gaunamas darbo užmokesti už 1 valandą pagal  pastarųjų 6 mėn. vidurkį, Eur"]
["5.4.1","Pareigybės pavadinimas","Darbuotojo vardas pavardė","val.",null,{"$f":"IFERROR(ROUND(AVERAGE(K110:K114),2),\"0\")","v":"0"},{"$f":"ROUND(E110*F110,2)","v":0},{"$f":"ROUND(G110*$D$7,2)","v":0}]
[null,null,"Darbuotojo vardas pavardė"]
[null,null,"Darbuotojo vardas pavardė"]
[null,null,"Darbuotojo vardas pavardė"]
[null,null,"Darbuotojo vardas pavardė"]
["5.4.2","Pareigybės pavadinimas","Darbuotojo vardas pavardė","val.",null,{"$f":"IFERROR(ROUND(AVERAGE(K115:K119),2),\"0\")","v":"0"},{"$f":"ROUND(E115*F115,2)","v":0},{"$f":"ROUND(G115*$D$7,2)","v":0}]
[null,null,"Darbuotojo vardas pavardė"]
[null,null,"Darbuotojo vardas pavardė"]
[null,null,"Darbuotojo vardas pavardė"]
[null,null,"Darbuotojo vardas pavardė"]
["5.4.3","Pareigybės pavadinimas","Darbuotojo vardas pavardė","val.",null,{"$f":"IFERROR(ROUND(AVERAGE(K120:K124),2),\"0\")","v":"0"},{"$f":"ROUND(E120*F120,2)","v":0},{"$f":"ROUND(G120*$D$7,2)","v":0}]
[null,null,"Darbuotojo vardas pavardė"]
[null,null,"Darbuotojo vardas pavardė"]
[null,null,"Darbuotojo vardas pavardė"]
[null,null,"Darbuotojo vardas pavardė"]
["5.4.4","Pareigybės pavadinimas","Darbuotojo vardas pavardė","val.",null,{"$f":"IFERROR(ROUND(AVERAGE(K125:K129),2),\"0\")","v":"0"},{"$f":"ROUND(E125*F125,2)","v":0},{"$f":"ROUND(G125*$D$7,2)","v":0}]
[null,null,"Darbuotojo vardas pavardė"]
[null,null,"Darbuotojo vardas pavardė"]
[null,null,"Darbuotojo vardas pavardė"]
[null,null,"Darbuotojo vardas pavardė"]
["5.4.5","Pareigybės pavadinimas","Darbuotojo vardas pavardė","val.",null,{"$f":"IFERROR(ROUND(AVERAGE(K130:K134),2),\"0\")","v":"0"},{"$f":"ROUND(E130*F130,2)","v":0},{"$f":"ROUND(G130*$D$7,2)","v":0}]
[null,null,"Darbuotojo vardas pavardė"]
[null,null,"Darbuotojo vardas pavardė"]
[null,null,"Darbuotojo vardas pavardė"]
[null,null,"Darbuotojo vardas pavardė"]
["5.4.6","Pareigybės pavadinimas","Darbuotojo vardas pavardė","val.",null,{"$f":"IFERROR(ROUND(AVERAGE(K135:K139),2),\"0\")","v":"0"},{"$f":"ROUND(E135*F135,2)","v":0},{"$f":"ROUND(G135*$D$7,2)","v":0}]
[null,null,"Darbuotojo vardas pavardė"]
[null,null,"Darbuotojo vardas pavardė"]
[null,null,"Darbuotojo vardas pavardė"]
[null,null,"Darbuotojo vardas pavardė"]
["5.4.7","Pareigybės pavadinimas","Darbuotojo vardas pavardė","val.",null,{"$f":"IFERROR(ROUND(AVERAGE(K140:K144),2),\"0\")","v":"0"},{"$f":"ROUND(E140*F140,2)","v":0},{"$f":"ROUND(G140*$D$7,2)","v":0}]
[null,null,"Darbuotojo vardas pavardė"]
[null,null,"Darbuotojo vardas pavardė"]
[null,null,"Darbuotojo vardas pavardė"]
[null,null,"Darbuotojo vardas pavardė"]
["5.4.8","Pareigybės pavadinimas","Darbuotojo vardas pavardė","val.",null,{"$f":"IFERROR(ROUND(AVERAGE(K145:K149),2),\"0\")","v":"0"},{"$f":"ROUND(E145*F145,2)","v":0},{"$f":"ROUND(G145*$D$7,2)","v":0}]
[null,null,"Darbuotojo vardas pavardė"]
[null,null,"Darbuotojo vardas pavardė"]
[null,null,"Darbuotojo vardas pavardė"]
[null,null,"Darbuotojo vardas pavardė"]
["5.4.9","Pareigybės pavadinimas","Darbuotojo vardas pavardė","val.",null,{"$f":"IFERROR(ROUND(AVERAGE(K150:K154),2),\"0\")","v":"0"},{"$f":"ROUND(E150*F150,2)","v":0},{"$f":"ROUND(G150*$D$7,2)","v":0}]
[null,null,"Darbuotojo vardas pavardė"]
[null,null,"Darbuotojo vardas pavardė"]
[null,null,"Darbuotojo vardas pavardė"]
[null,null,"Darbuotojo vardas pavardė"]
["5.4.10","Pareigybės pavadinimas","Darbuotojo vardas pavardė","val.",null,{"$f":"IFERROR(ROUND(AVERAGE(K155:K159),2),\"0\")","v":"0"},{"$f":"ROUND(E155*F155,2)","v":0},{"$f":"ROUND(G155*$D$7,2)","v":0}]
[null,null,"Darbuotojo vardas pavardė"]
[null,null,"Darbuotojo vardas pavardė"]
[null,null,"Darbuotojo vardas pavardė"]
[null,null,"Darbuotojo vardas pavardė"]
["Iš viso tinkamų finansuoti išlaidų:",null,null,null,null,null,{"$f":"G10","v":0},{"$f":"H10","v":0}]

{"sheet":"6","index":7,"n_rows":160,"n_cols":11,"rows_kept":160,"cut":false,"hidden":false,"merged":[[5,3,5,8],[8,1,8,2],[9,1,9,5],[10,1,10,5],[11,1,11,2],[12,1,12,2],[0,3,0,8],[2,0,2,2],[2,3,2,8],[3,3,3,4],[3,5,3,6],[4,0,4,2],[4,3,4,8],[19,1,19,2],[20,1,20,2],[21,1,21,5],[22,1,22,2],[23,1,23,2],[24,1,24,2],[13,1,13,2],[14,1,14,2],[15,1,15,2],[16,1,16,2],[17,1,17,2],[18,1,18,2],[31,1,31,2],[32,1,32,2],[33,1,33,2],[34,1,34,2],[35,1,35,2],[36,1,36,2],[25,1,25,2],[26,1,26,2],[27,1,27,2],[28,1,28,2],[29,1,29,2],[30,1,30,2],[52,0,58,0],[52,1,58,1],[52,8,58,8],[59,0,65,0],[59,1,65,1],[59,8,65,8],[37,1,37,5],[38,0,44,0],[38,1,44,1],[38,8,44,8],[45,0,51,0],[45,1,51,1],[45,8,51,8],[80,0,86,0],[80,1,86,1],[80,8,86,8],[87,0,93,0],[87,1,93,1],[87,8,93,8],[66,0,72,0],[66,1,72,1],[66,8,72,8],[73,0,79,0],[73,1,79,1],[73,8,79,8],[108,1,108,5],[109,0,113,0],[109,1,113,1],[109,3,113,3],[109,4,113,4],[109,5,113,5],[94,0,100,0],[94,1,100,1],[94,8,100,8],[101,0,107,0],[101,1,107,1],[101,8,107,8],[109,6,113,6],[109,7,113,7],[109,8,113,8],[114,0,118,0],[114,1,118,1],[114,3,118,3],[114,4,118,4],[114,5,118,5],[114,6,118,6],[114,7,118,7],[114,8,118,8],[119,0,123,0],[119,1,123,1],[119,3,123,3],[119,4,123,4],[119,5,123,5],[119,6,123,6],[119,7,123,7],[119,8,123,8],[124,7,128,7],[124,8,128,8],[129,0,133,0],[129,1,133,1],[129,3,133,3],[129,4,133,4],[129,5,133,5],[129,6,133,6],[129,7,133,7],[129,8,133,8],[124,0,128,0],[124,1,128,1],[124,3,128,3],[124,4,128,4],[124,5,128,5],[124,6,128,6],[134,7,138,7],[134,8,138,8],[139,0,143,0],[139,1,143,1],[139,3,143,3],[139,4,143,4],[139,5,143,5],[139,6,143,6],[139,7,143,7],[139,8,143,8],[134,0,138,0],[134,1,138,1],[134,3,138,3],[134,4,138,4],[134,5,138,5],[134,6,138,6],[144,7,148,7],[144,8,148,8],[149,0,153,0],[149,1,153,1],[149,3,153,3],[149,4,153,4],[149,5,153,5],[149,6,153,6],[149,7,153,7],[149,8,153,8],[144,0,148,0],[144,1,148,1],[144,3,148,3],[144,4,148,4],[144,5,148,5],[144,6,148,6],[154,7,158,7],[154,8,158,8],[159,0,159,5],[154,0,158,0],[154,1,158,1],[154,3,158,3],[154,4,158,4],[154,5,158,5],[154,6,158,6]]}
[null,null,"Pasirinkite veiklos tipą:"]
[null,null,"Fizinio rodiklio Nr.:"]
["Fizinio rodiklio pavadinimas:"]
[null,null,"Fizinio rodiklio matavimo vnt.:",null,null,"Fizinio rodiklio vnt. skaičius:"]
["Juridinis asmuo (pareiškėjas, partneris), atsakingas už fizinį rodiklį:"]
[null,null,"Vykdytojo tipas:"]
[null,null,"Finansavimo intensyvumas:",null,null,null,"Pasirinkite biudžeto išlaidų kategoriją:","Visos"]
[]
["Eil. Nr.","Išlaidų kategorijos pavadinimas",null,"Matavimo vnt.","Kiekis","Vieneto kaina be PVM, Eur","Tinkamų finansuoti išlaidų suma be PVM, Eur","Finansavimo suma, Eur","Išlaidų pagrindimo dokumentų pavadinimas, data ir Nr."]
[5,"PROJEKTO VYKDYMAS",null,null,null,null,{"$f":"G11+G22+G38+G109","v":0},{"$f":"H11+H22+H109+H38","v":0}]
["5.1","Produkto sertifikavimo išlaidos",null,null,null,null,{"$f":"SUM(G12:G21)","v":0},{"$f":"SUM(H12:H21)","v":0}]
["5.1.1","Paslaugos pavadinimas",null,null,null,null,{"$f":"ROUND(E12*F12,2)","v":0},{"$f":"ROUND(G12*$D$7,2)","v":0}]
["5.1.2","Paslaugos pavadinimas",null,null,null,null,0,0]
["5.1.3","Paslaugos pavadinimas",null,null,null,null,0,0]
["5.1.4","Paslaugos pavadinimas",null,null,null,null,0,0]
["5.1.5","Paslaugos pavadinimas",null,null,null,null,0,0]
["5.1.6","Paslaugos pavadinimas",null,null,null,null,0,0]
["5.1.7","Paslaugos pavadinimas",null,null,null,null,0,0]
["5.1.8","Paslaugos pavadinimas",null,null,null,null,0,0]
["5.1.9","Paslaugos pavadinimas",null,null,null,null,0,0]
["5.1.10","Paslaugos pavadinimas",null,null,null,null,0,0]
["5.2","Sertifikavimo paslaugų pirkimo išlaidos",null,null,null,null,{"$f":"SUM(G23:G37)","v":0},{"$f":"SUM(H23:H37)","v":0}]
["5.2.1","Išlaidų pavadinimas",null,null,null,null,{"$f":"ROUND(E23*F23,2)","v":0},{"$f":"ROUND(G23*$D$7,2)","v":0}]
["5.2.2","Išlaidų pavadinimas",null,null,null,null,{"$f":"ROUND(E24*F24,2)","v":0},{"$f":"ROUND(G24*$D$7,2)","v":0}]
["5.2.3","Išlaidų pavadinimas",null,null,null,null,{"$f":"ROUND(E25*F25,2)","v":0},{"$f":"ROUND(G25*$D$7,2)","v":0}]
["5.2.4","Išlaidų pavadinimas",null,null,null,null,{"$f":"ROUND(E26*F26,2)","v":0},{"$f":"ROUND(G26*$D$7,2)","v":0}]
["5.2.5","Išlaidų pavadinimas",null,null,null,null,{"$f":"ROUND(E27*F27,2)","v":0},{"$f":"ROUND(G27*$D$7,2)","v":0}]
["5.2.6","Išlaidų pavadinimas",null,null,null,null,0,0]
["5.2.7","Išlaidų pavadinimas",null,null,null,null,0,0]
["5.2.8","Išlaidų pavadinimas",null,null,null,null,0,0]
["5.2.9","Išlaidų pavadinimas",null,null,null,null,0,0]
["5.2.10","Išlaidų pavadinimas",null,null,null,null,0,0]
["5.2.11","Išlaidų pavadinimas",null,null,null,null,0,0]
["5.2.12","Išlaidų pavadinimas",null,null,null,null,0,0]
["5.2.13","Išlaidų pavadinimas",null,null,null,null,0,0]
["5.2.14","Išlaidų pavadinimas",null,null,null,null,0,0]
["5.2.15","Išlaidų pavadinimas",null,null,null,null,0,0]
["5.3","Projektą vykdančio personalo komandiruočių išlaidos",null,null,null,null,{"$f":"SUM(G39,G46,G53,G60,G67,G74,G81,G88,G95,G102)","v":0},{"$f":"SUM(H39,H46,H53,H60,H67,H74,H81,H88,H95,H102)","v":0}]
["5.3.1","Komandiruotės pavadinimas, vieta, trukmė dienomis, vykstančių asmenų skaičius","Iš viso komandiruotei",null,null,null,{"$f":"SUM(G40:G45)","v":0},{"$f":"ROUND(G39*$D$7,2)","v":0}]
[null,null,"Dienpinigiai",null,null,null,{"$f":"ROUND(E40*F40,2)","v":0}]
[null,null,"Gyvenamojo ploto nuoma",null,null,null,0]
[null,null,"Kelionės išlaidos",null,null,null,0]
[null,null,"Dalyvavimo mokestis",null,null,null,0]
[null,null,"Kitos išlaidų pavadinimas",null,null,null,0]
[null,null,"Kitos išlaidų pavadinimas",null,null,null,0]
["5.3.2","Komandiruotės pavadinimas, vieta, trukmė dienomis, vykstančių asmenų skaičius","Iš viso komandiruotei",null,null,null,{"$f":"SUM(G47:G52)","v":0},{"$f":"ROUND(G46*$D$7,2)","v":0}]
[null,null,"Dienpinigiai",null,null,null,{"$f":"ROUND(E47*F47,2)","v":0}]
[null,null,"Gyvenamojo ploto nuoma",null,null,null,0]
[null,null,"Kelionės išlaidos",null,null,null,0]
[null,null,"Dalyvavimo mokestis",null,null,null,0]
[null,null,"Kitos išlaidų pavadinimas",null,null,null,0]
[null,null,"Kitos išlaidų pavadinimas",null,null,null,0]
["5.3.3","Komandiruotės pavadinimas, vieta, trukmė dienomis, vykstančių asmenų skaičius","Iš viso komandiruotei",null,null,null,{"$f":"SUM(G54:G59)","v":0},{"$f":"ROUND(G53*$D$7,2)","v":0}]
[null,null,"Dienpinigiai",null,null,null,{"$f":"ROUND(E54*F54,2)","v":0}]
[null,null,"Gyvenamojo ploto nuoma",null,null,null,0]
[null,null,"Kelionės išlaidos",null,null,null,0]
[null,null,"Dalyvavimo mokestis",null,null,null,0]
[null,null,"Kitos išlaidų pavadinimas",null,null,null,0]
[null,null,"Kitos išlaidų pavadinimas",null,null,null,0]
["5.3.4","Komandiruotės pavadinimas, vieta, trukmė dienomis, vykstančių asmenų skaičius","Iš viso komandiruotei",null,null,null,{"$f":"SUM(G61:G66)","v":0},{"$f":"ROUND(G60*$D$7,2)","v":0}]
[null,null,"Dienpinigiai",null,null,null,{"$f":"ROUND(E61*F61,2)","v":0}]
[null,null,"Gyvenamojo ploto nuoma",null,null,null,0]
[null,null,"Kelionės išlaidos",null,null,null,0]
[null,null,"Dalyvavimo mokestis",null,null,null,0]
[null,null,"Kitos išlaidų pavadinimas",null,null,null,0]
[null,null,"Kitos išlaidų pavadinimas",null,null,null,0]
["5.3.5","Komandiruotės pavadinimas, vieta, trukmė dienomis, vykstančių asmenų skaičius","Iš viso komandiruotei",null,null,null,{"$f":"SUM(G68:G73)","v":0},{"$f":"ROUND(G67*$D$7,2)","v":0}]
[null,null,"Dienpinigiai",null,null,null,{"$f":"ROUND(E68*F68,2)","v":0}]
[null,null,"Gyvenamojo ploto nuoma",null,null,null,0]
[null,null,"Kelionės išlaidos",null,null,null,0]
[null,null,"Dalyvavimo mokestis",null,null,null,0]
[null,null,"Kitos išlaidų pavadinimas",null,null,null,0]
[null,null,"Kitos išlaidų pavadinimas",null,null,null,0]
["5.3.6","Komandiruotės pavadinimas, vieta, trukmė dienomis, vykstančių asmenų skaičius","Iš viso komandiruotei",null,null,null,{"$f":"SUM(G75:G80)","v":0},{"$f":"ROUND(G74*$D$7,2)","v":0}]
[null,null,"Dienpinigiai",null,null,null,{"$f":"ROUND(E75*F75,2)","v":0}]
[null,null,"Gyvenamojo ploto nuoma",null,null,null,0]
[null,null,"Kelionės išlaidos",null,null,null,0]
[null,null,"Dalyvavimo mokestis",null,null,null,0]
[null,null,"Kitos išlaidų pavadinimas",null,null,null,0]
[null,null,"Kitos išlaidų pavadinimas",null,null,null,0]
["5.3.7","Komandiruotės pavadinimas, vieta, trukmė dienomis, vykstančių asmenų skaičius","Iš viso komandiruotei",null,null,null,{"$f":"SUM(G82:G87)","v":0},{"$f":"ROUND(G81*$D$7,2)","v":0}]
[null,null,"Dienpinigiai",null,null,null,{"$f":"ROUND(E82*F82,2)","v":0}]
[null,null,"Gyvenamojo ploto nuoma",null,null,null,0]
[null,null,"Kelionės išlaidos",null,null,null,0]
[null,null,"Dalyvavimo mokestis",null,null,null,0]
[null,null,"Kitos išlaidų pavadinimas",null,null,null,0]
[null,null,"Kitos išlaidų pavadinimas",null,null,null,0]
["5.3.8","Komandiruotės pavadinimas, vieta, trukmė dienomis, vykstančių asmenų skaičius","Iš viso komandiruotei",null,null,null,{"$f":"SUM(G89:G94)","v":0},{"$f":"ROUND(G88*$D$7,2)","v":0}]
[null,null,"Dienpinigiai",null,null,null,{"$f":"ROUND(E89*F89,2)","v":0}]
[null,null,"Gyvenamojo ploto nuoma",null,null,null,0]
[null,null,"Kelionės išlaidos",null,null,null,0]
[null,null,"Dalyvavimo mokestis",null,null,null,0]
[null,null,"Kitos išlaidų pavadinimas",null,null,null,0]
[null,null,"Kitos išlaidų pavadinimas",null,null,null,0]
["5.3.9","Komandiruotės pavadinimas, vieta, trukmė dienomis, vykstančių asmenų skaičius","Iš viso komandiruotei",null,null,null,{"$f":"SUM(G96:G101)","v":0},{"$f":"ROUND(G95*$D$7,2)","v":0}]
[null,null,"Dienpinigiai",null,null,null,{"$f":"ROUND(E96*F96,2)","v":0}]
[null,null,"Gyvenamojo ploto nuoma",null,null,null,0]
[null,null,"Kelionės išlaidos",null,null,null,0]
[null,null,"Dalyvavimo mokestis",null,null,null,0]
[null,null,"Kitos išlaidų pavadinimas",null,null,null,0]
[null,null,"Kitos išlaidų pavadinimas",null,null,null,0]
["5.3.10","Komandiruotės pavadinimas, vieta, trukmė dienomis, vykstančių asmenų skaičius","Iš viso komandiruotei",null,null,null,{"$f":"SUM(G103:G108)","v":0},{"$f":"ROUND(G102*$D$7,2)","v":0}]
[null,null,"Dienpinigiai",null,null,null,{"$f":"ROUND(E103*F103,2)","v":0}]
[null,null,"Gyvenamojo ploto nuoma",null,null,null,0]
[null,null,"Kelionės išlaidos",null,null,null,0]
[null,null,"Dalyvavimo mokestis",null,null,null,0]
[null,null,"Kitos išlaidų pavadinimas",null,null,null,0]
[null,null,"Kitos išlaidų pavadinimas",null,null,null,0]
["5.4","Projektą vykdančio personalo darbo užmokestis ir išlaidos su darbo santykiais susijusiems darbdavio įsipareigojimams",null,null,null,null,{"$f":"SUM(G110:G159)","v":0},{"$f":"SUM(H110:H159)","v":0},null,null,"Faktiškai gaunamas darbo užmokesti už 1 valandą pagal  pastarųjų 6 mėn. vidurkį, Eur"]
["5.4.1","Pareigybės pavadinimas","Darbuotojo vardas pavardė","val.",null,{"$f":"IFERROR(ROUND(AVERAGE(K110:K114),2),\"0\")","v":"0"},{"$f":"ROUND(E110*F110,2)","v":0},{"$f":"ROUND(G110*$D$7,2)","v":0}]
[null,null,"Darbuotojo vardas pavardė"]
[null,null,"Darbuotojo vardas pavardė"]
[null,null,"Darbuotojo vardas pavardė"]
[null,null,"Darbuotojo vardas pavardė"]
["5.4.2","Pareigybės pavadinimas","Darbuotojo vardas pavardė","val.",null,{"$f":"IFERROR(ROUND(AVERAGE(K115:K119),2),\"0\")","v":"0"},{"$f":"ROUND(E115*F115,2)","v":0},{"$f":"ROUND(G115*$D$7,2)","v":0}]
[null,null,"Darbuotojo vardas pavardė"]
[null,null,"Darbuotojo vardas pavardė"]
[null,null,"Darbuotojo vardas pavardė"]
[null,null,"Darbuotojo vardas pavardė"]
["5.4.3","Pareigybės pavadinimas","Darbuotojo vardas pavardė","val.",null,{"$f":"IFERROR(ROUND(AVERAGE(K120:K124),2),\"0\")","v":"0"},{"$f":"ROUND(E120*F120,2)","v":0},{"$f":"ROUND(G120*$D$7,2)","v":0}]
[null,null,"Darbuotojo vardas pavardė"]
[null,null,"Darbuotojo vardas pavardė"]
[null,null,"Darbuotojo vardas pavardė"]
[null,null,"Darbuotojo vardas pavardė"]
["5.4.4","Pareigybės pavadinimas","Darbuotojo vardas pavardė","val.",null,{"$f":"IFERROR(ROUND(AVERAGE(K125:K129),2),\"0\")","v":"0"},{"$f":"ROUND(E125*F125,2)","v":0},{"$f":"ROUND(G125*$D$7,2)","v":0}]
[null,null,"Darbuotojo vardas pavardė"]
[null,null,"Darbuotojo vardas pavardė"]
[null,null,"Darbuotojo vardas pavardė"]
[null,null,"Darbuotojo vardas pavardė"]
["5.4.5","Pareigybės pavadinimas","Darbuotojo vardas pavardė","val.",null,{"$f":"IFERROR(ROUND(AVERAGE(K130:K134),2),\"0\")","v":"0"},{"$f":"ROUND(E130*F130,2)","v":0},{"$f":"ROUND(G130*$D$7,2)","v":0}]
[null,null,"Darbuotojo vardas pavardė"]
[null,null,"Darbuotojo vardas pavardė"]
[null,null,"Darbuotojo vardas pavardė"]
[null,null,"Darbuotojo vardas pavardė"]
["5.4.6","Pareigybės pavadinimas","Darbuotojo vardas pavardė","val.",null,{"$f":"IFERROR(ROUND(AVERAGE(K135:K139),2),\"0\")","v":"0"},{"$f":"ROUND(E135*F135,2)","v":0},{"$f":"ROUND(G135*$D$7,2)","v":0}]
[null,null,"Darbuotojo vardas pavardė"]
[null,null,"Darbuotojo vardas pavardė"]
[null,null,"Darbuotojo vardas pavardė"]
[null,null,"Darbuotojo vardas pavardė"]
["5.4.7","Pareigybės pavadinimas","Darbuotojo vardas pavardė","val.",null,{"$f":"IFERROR(ROUND(AVERAGE(K140:K144),2),\"0\")","v":"0"},{"$f":"ROUND(E140*F140,2)","v":0},{"$f":"ROUND(G140*$D$7,2)","v":0}]
[null,null,"Darbuotojo vardas pavardė"]
[null,null,"Darbuotojo vardas pavardė"]
[null,null,"Darbuotojo vardas pavardė"]
[null,null,"Darbuotojo vardas pavardė"]
["5.4.8","Pareigybės pavadinimas","Darbuotojo vardas pavardė","val.",null,{"$f":"IFERROR(ROUND(AVERAGE(K145:K149),2),\"0\")","v":"0"},{"$f":"ROUND(E145*F145,2)","v":0},{"$f":"ROUND(G145*$D$7,2)","v":0}]
[null,null,"Darbuotojo vardas pavardė"]
[null,null,"Darbuotojo vardas pavardė"]
[null,null,"Darbuotojo vardas pavardė"]
[null,null,"Darbuotojo vardas pavardė"]
["5.4.9","Pareigybės pavadinimas","Darbuotojo vardas pavardė","val.",null,{"$f":"IFERROR(ROUND(AVERAGE(K150:K154),2),\"0\")","v":"0"},{"$f":"ROUND(E150*F150,2)","v":0},{"$f":"ROUND(G150*$D$7,2)","v":0}]
[null,null,"Darbuotojo vardas pavardė"]
[null,null,"Darbuotojo vardas pavardė"]
[null,null,"Darbuotojo vardas pavardė"]
[null,null,"Darbuotojo vardas pavardė"]
["5.4.10","Pareigybės pavadinimas","Darbuotojo vardas pavardė","val.",null,{"$f":"IFERROR(ROUND(AVERAGE(K155:K159),2),\"0\")","v":"0"},{"$f":"ROUND(E155*F155,2)","v":0},{"$f":"ROUND(G155*$D$7,2)","v":0}]
[null,null,"Darbuotojo vardas pavardė"]
[null,null,"Darbuotojo vardas pavardė"]
[null,null,"Darbuotojo vardas pavardė"]
[null,null,"Darbuotojo vardas pavardė"]
["Iš viso tinkamų finansuoti išlaidų:",null,null,null,null,null,{"$f":"G10","v":0},{"$f":"H10","v":0}]

{"sheet":"7","index":8,"n_rows":160,"n_cols":11,"rows_kept":160,"cut":false,"hidden":false,"merged":[[5,3,5,8],[8,1,8,2],[9,1,9,5],[10,1,10,5],[11,1,11,2],[12,1,12,2],[0,3,0,8],[2,0,2,2],[2,3,2,8],[3,3,3,4],[3,5,3,6],[4,0,4,2],[4,3,4,8],[19,1,19,2],[20,1,20,2],[21,1,21,5],[22,1,22,2],[23,1,23,2],[24,1,24,2],[13,1,13,2],[14,1,14,2],[15,1,15,2],[16,1,16,2],[17,1,17,2],[18,1,18,2],[31,1,31,2],[32,1,32,2],[33,1,33,2],[34,1,34,2],[35,1,35,2],[36,1,36,2],[25,1,25,2],[26,1,26,2],[27,1,27,2],[28,1,28,2],[29,1,29,2],[30,1,30,2],[52,0,58,0],[52,1,58,1],[52,8,58,8],[59,0,65,0],[59,1,65,1],[59,8,65,8],[37,1,37,5],[38,0,44,0],[38,1,44,1],[38,8,44,8],[45,0,51,0],[45,1,51,1],[45,8,51,8],[80,0,86,0],[80,1,86,1],[80,8,86,8],[87,0,93,0],[87,1,93,1],[87,8,93,8],[66,0,72,0],[66,1,72,1],[66,8,72,8],[73,0,79,0],[73,1,79,1],[73,8,79,8],[108,1,108,5],[109,0,113,0],[109,1,113,1],[109,3,113,3],[109,4,113,4],[109,5,113,5],[94,0,100,0],[94,1,100,1],[94,8,100,8],[101,0,107,0],[101,1,107,1],[101,8,107,8],[109,6,113,6],[109,7,113,7],[109,8,113,8],[114,0,118,0],[114,1,118,1],[114,3,118,3],[114,4,118,4],[114,5,118,5],[114,6,118,6],[114,7,118,7],[114,8,118,8],[119,0,123,0],[119,1,123,1],[119,3,123,3],[119,4,123,4],[119,5,123,5],[119,6,123,6],[119,7,123,7],[119,8,123,8],[124,7,128,7],[124,8,128,8],[129,0,133,0],[129,1,133,1],[129,3,133,3],[129,4,133,4],[129,5,133,5],[129,6,133,6],[129,7,133,7],[129,8,133,8],[124,0,128,0],[124,1,128,1],[124,3,128,3],[124,4,128,4],[124,5,128,5],[124,6,128,6],[134,7,138,7],[134,8,138,8],[139,0,143,0],[139,1,143,1],[139,3,143,3],[139,4,143,4],[139,5,143,5],[139,6,143,6],[139,7,143,7],[139,8,143,8],[134,0,138,0],[134,1,138,1],[134,3,138,3],[134,4,138,4],[134,5,138,5],[134,6,138,6],[144,7,148,7],[144,8,148,8],[149,0,153,0],[149,1,153,1],[149,3,153,3],[149,4,153,4],[149,5,153,5],[149,6,153,6],[149,7,153,7],[149,8,153,8],[144,0,148,0],[144,1,148,1],[144,3,148,3],[144,4,148,4],[144,5,148,5],[144,6,148,6],[154,7,158,7],[154,8,158,8],[159,0,159,5],[154,0,158,0],[154,1,158,1],[154,3,158,3],[154,4,158,4],[154,5,158,5],[154,6,158,6]]}
[null,null,"Pasirinkite veiklos tipą:"]
[null,null,"Fizinio rodiklio Nr.:"]
["Fizinio rodiklio pavadinimas:"]
[null,null,"Fizinio rodiklio matavimo vnt.:",null,null,"Fizinio rodiklio vnt. skaičius:"]
["Juridinis asmuo (pareiškėjas, partneris), atsakingas už fizinį rodiklį:"]
[null,null,"Vykdytojo tipas:"]
[null,null,"Finansavimo intensyvumas:",null,null,null,"Pasirinkite biudžeto išlaidų kategoriją:","Visos"]
[]
["Eil. Nr.","Išlaidų kategorijos pavadinimas",null,"Matavimo vnt.","Kiekis","Vieneto kaina be PVM, Eur","Tinkamų finansuoti išlaidų suma be PVM, Eur","Finansavimo suma, Eur","Išlaidų pagrindimo dokumentų pavadinimas, data ir Nr."]
[5,"PROJEKTO VYKDYMAS",null,null,null,null,{"$f":"G11+G22+G38+G109","v":0},{"$f":"H11+H22+H109+H38","v":0}]
["5.1","Produkto sertifikavimo išlaidos",null,null,null,null,{"$f":"SUM(G12:G21)","v":0},{"$f":"SUM(H12:H21)","v":0}]
["5.1.1","Paslaugos pavadinimas",null,null,null,null,{"$f":"ROUND(E12*F12,2)","v":0},{"$f":"ROUND(G12*$D$7,2)","v":0}]
["5.1.2","Paslaugos pavadinimas",null,null,null,null,0,0]
["5.1.3","Paslaugos pavadinimas",null,null,null,null,0,0]
["5.1.4","Paslaugos pavadinimas",null,null,null,null,0,0]
["5.1.5","Paslaugos pavadinimas",null,null,null,null,0,0]
["5.1.6","Paslaugos pavadinimas",null,null,null,null,0,0]
["5.1.7","Paslaugos pavadinimas",null,null,null,null,0,0]
["5.1.8","Paslaugos pavadinimas",null,null,null,null,0,0]
["5.1.9","Paslaugos pavadinimas",null,null,null,null,0,0]
["5.1.10","Paslaugos pavadinimas",null,null,null,null,0,0]
["5.2","Sertifikavimo paslaugų pirkimo išlaidos",null,null,null,null,{"$f":"SUM(G23:G37)","v":0},{"$f":"SUM(H23:H37)","v":0}]
["5.2.1","Išlaidų pavadinimas",null,null,null,null,{"$f":"ROUND(E23*F23,2)","v":0},{"$f":"ROUND(G23*$D$7,2)","v":0}]
["5.2.2","Išlaidų pavadinimas",null,null,null,null,{"$f":"ROUND(E24*F24,2)","v":0},{"$f":"ROUND(G24*$D$7,2)","v":0}]
["5.2.3","Išlaidų pavadinimas",null,null,null,null,{"$f":"ROUND(E25*F25,2)","v":0},{"$f":"ROUND(G25*$D$7,2)","v":0}]
["5.2.4","Išlaidų pavadinimas",null,null,null,null,{"$f":"ROUND(E26*F26,2)","v":0},{"$f":"ROUND(G26*$D$7,2)","v":0}]
["5.2.5","Išlaidų pavadinimas",null,null,null,null,{"$f":"ROUND(E27*F27,2)","v":0},{"$f":"ROUND(G27*$D$7,2)","v":0}]
["5.2.6","Išlaidų pavadinimas",null,null,null,null,0,0]
["5.2.7","Išlaidų pavadinimas",null,null,null,null,0,0]
["5.2.8","Išlaidų pavadinimas",null,null,null,null,0,0]
["5.2.9","Išlaidų pavadinimas",null,null,null,null,0,0]
["5.2.10","Išlaidų pavadinimas",null,null,null,null,0,0]
["5.2.11","Išlaidų pavadinimas",null,null,null,null,0,0]
["5.2.12","Išlaidų pavadinimas",null,null,null,null,0,0]
["5.2.13","Išlaidų pavadinimas",null,null,null,null,0,0]
["5.2.14","Išlaidų pavadinimas",null,null,null,null,0,0]
["5.2.15","Išlaidų pavadinimas",null,null,null,null,0,0]
["5.3","Projektą vykdančio personalo komandiruočių išlaidos",null,null,null,null,{"$f":"SUM(G39,G46,G53,G60,G67,G74,G81,G88,G95,G102)","v":0},{"$f":"SUM(H39,H46,H53,H60,H67,H74,H81,H88,H95,H102)","v":0}]
["5.3.1","Komandiruotės pavadinimas, vieta, trukmė dienomis, vykstančių asmenų skaičius","Iš viso komandiruotei",null,null,null,{"$f":"SUM(G40:G45)","v":0},{"$f":"ROUND(G39*$D$7,2)","v":0}]
[null,null,"Dienpinigiai",null,null,null,{"$f":"ROUND(E40*F40,2)","v":0}]
[null,null,"Gyvenamojo ploto nuoma",null,null,null,0]
[null,null,"Kelionės išlaidos",null,null,null,0]
[null,null,"Dalyvavimo mokestis",null,null,null,0]
[null,null,"Kitos išlaidų pavadinimas",null,null,null,0]
[null,null,"Kitos išlaidų pavadinimas",null,null,null,0]
["5.3.2","Komandiruotės pavadinimas, vieta, trukmė dienomis, vykstančių asmenų skaičius","Iš viso komandiruotei",null,null,null,{"$f":"SUM(G47:G52)","v":0},{"$f":"ROUND(G46*$D$7,2)","v":0}]
[null,null,"Dienpinigiai",null,null,null,{"$f":"ROUND(E47*F47,2)","v":0}]
[null,null,"Gyvenamojo ploto nuoma",null,null,null,0]
[null,null,"Kelionės išlaidos",null,null,null,0]
[null,null,"Dalyvavimo mokestis",null,null,null,0]
[null,null,"Kitos išlaidų pavadinimas",null,null,null,0]
[null,null,"Kitos išlaidų pavadinimas",null,null,null,0]
["5.3.3","Komandiruotės pavadinimas, vieta, trukmė dienomis, vykstančių asmenų skaičius","Iš viso komandiruotei",null,null,null,{"$f":"SUM(G54:G59)","v":0},{"$f":"ROUND(G53*$D$7,2)","v":0}]
[null,null,"Dienpinigiai",null,null,null,{"$f":"ROUND(E54*F54,2)","v":0}]
[null,null,"Gyvenamojo ploto nuoma",null,null,null,0]
[null,null,"Kelionės išlaidos",null,null,null,0]
[null,null,"Dalyvavimo mokestis",null,null,null,0]
[null,null,"Kitos išlaidų pavadinimas",null,null,null,0]
[null,null,"Kitos išlaidų pavadinimas",null,null,null,0]
["5.3.4","Komandiruotės pavadinimas, vieta, trukmė dienomis, vykstančių asmenų skaičius","Iš viso komandiruotei",null,null,null,{"$f":"SUM(G61:G66)","v":0},{"$f":"ROUND(G60*$D$7,2)","v":0}]
[null,null,"Dienpinigiai",null,null,null,{"$f":"ROUND(E61*F61,2)","v":0}]
[null,null,"Gyvenamojo ploto nuoma",null,null,null,0]
[null,null,"Kelionės išlaidos",null,null,null,0]
[null,null,"Dalyvavimo mokestis",null,null,null,0]
[null,null,"Kitos išlaidų pavadinimas",null,null,null,0]
[null,null,"Kitos išlaidų pavadinimas",null,null,null,0]
["5.3.5","Komandiruotės pavadinimas, vieta, trukmė dienomis, vykstančių asmenų skaičius","Iš viso komandiruotei",null,null,null,{"$f":"SUM(G68:G73)","v":0},{"$f":"ROUND(G67*$D$7,2)","v":0}]
[null,null,"Dienpinigiai",null,null,null,{"$f":"ROUND(E68*F68,2)","v":0}]
[null,null,"Gyvenamojo ploto nuoma",null,null,null,0]
[null,null,"Kelionės išlaidos",null,null,null,0]
[null,null,"Dalyvavimo mokestis",null,null,null,0]
[null,null,"Kitos išlaidų pavadinimas",null,null,null,0]
[null,null,"Kitos išlaidų pavadinimas",null,null,null,0]
["5.3.6","Komandiruotės pavadinimas, vieta, trukmė dienomis, vykstančių asmenų skaičius","Iš viso komandiruotei",null,null,null,{"$f":"SUM(G75:G80)","v":0},{"$f":"ROUND(G74*$D$7,2)","v":0}]
[null,null,"Dienpinigiai",null,null,null,{"$f":"ROUND(E75*F75,2)","v":0}]
[null,null,"Gyvenamojo ploto nuoma",null,null,null,0]
[null,null,"Kelionės išlaidos",null,null,null,0]
[null,null,"Dalyvavimo mokestis",null,null,null,0]
[null,null,"Kitos išlaidų pavadinimas",null,null,null,0]
[null,null,"Kitos išlaidų pavadinimas",null,null,null,0]
["5.3.7","Komandiruotės pavadinimas, vieta, trukmė dienomis, vykstančių asmenų skaičius","Iš viso komandiruotei",null,null,null,{"$f":"SUM(G82:G87)","v":0},{"$f":"ROUND(G81*$D$7,2)","v":0}]
[null,null,"Dienpinigiai",null,null,null,{"$f":"ROUND(E82*F82,2)","v":0}]
[null,null,"Gyvenamojo ploto nuoma",null,null,null,0]
[null,null,"Kelionės išlaidos",null,null,null,0]
[null,null,"Dalyvavimo mokestis",null,null,null,0]
[null,null,"Kitos išlaidų pavadinimas",null,null,null,0]
[null,null,"Kitos išlaidų pavadinimas",null,null,null,0]
["5.3.8","Komandiruotės pavadinimas, vieta, trukmė dienomis, vykstančių asmenų skaičius","Iš viso komandiruotei",null,null,null,{"$f":"SUM(G89:G94)","v":0},{"$f":"ROUND(G88*$D$7,2)","v":0}]
[null,null,"Dienpinigiai",null,null,null,{"$f":"ROUND(E89*F89,2)","v":0}]
[null,null,"Gyvenamojo ploto nuoma",null,null,null,0]
[null,null,"Kelionės išlaidos",null,null,null,0]
[null,null,"Dalyvavimo mokestis",null,null,null,0]
[null,null,"Kitos išlaidų pavadinimas",null,null,null,0]
[null,null,"Kitos išlaidų pavadinimas",null,null,null,0]
["5.3.9","Komandiruotės pavadinimas, vieta, trukmė dienomis, vykstančių asmenų skaičius","Iš viso komandiruotei",null,null,null,{"$f":"SUM(G96:G101)","v":0},{"$f":"ROUND(G95*$D$7,2)","v":0}]
[null,null,"Dienpinigiai",null,null,null,{"$f":"ROUND(E96*F96,2)","v":0}]
[null,null,"Gyvenamojo ploto nuoma",null,null,null,0]
[null,null,"Kelionės išlaidos",null,null,null,0]
[null,null,"Dalyvavimo mokestis",null,null,null,0]
[null,null,"Kitos išlaidų pavadinimas",null,null,null,0]
[null,null,"Kitos išlaidų pavadinimas",null,null,null,0]
["5.3.10","Komandiruotės pavadinimas, vieta, trukmė dienomis, vykstančių asmenų skaičius","Iš viso komandiruotei",null,null,null,{"$f":"SUM(G103:G108)","v":0},{"$f":"ROUND(G102*$D$7,2)","v":0}]
[null,null,"Dienpinigiai",null,null,null,{"$f":"ROUND(E103*F103,2)","v":0}]
[null,null,"Gyvenamojo ploto nuoma",null,null,null,0]
[null,null,"Kelionės išlaidos",null,null,null,0]
[null,null,"Dalyvavimo mokestis",null,null,null,0]
[null,null,"Kitos išlaidų pavadinimas",null,null,null,0]
[null,null,"Kitos išlaidų pavadinimas",null,null,null,0]
["5.4","Projektą vykdančio personalo darbo užmokestis ir išlaidos su darbo santykiais susijusiems darbdavio įsipareigojimams",null,null,null,null,{"$f":"SUM(G110:G159)","v":0},{"$f":"SUM(H110:H159)","v":0},null,null,"Faktiškai gaunamas darbo užmokesti už 1 valandą pagal  pastarųjų 6 mėn. vidurkį, Eur"]
["5.4.1","Pareigybės pavadinimas","Darbuotojo vardas pavardė","val.",null,{"$f":"IFERROR(ROUND(AVERAGE(K110:K114),2),\"0\")","v":"0"},{"$f":"ROUND(E110*F110,2)","v":0},{"$f":"ROUND(G110*$D$7,2)","v":0}]
[null,null,"Darbuotojo vardas pavardė"]
[null,null,"Darbuotojo vardas pavardė"]
[null,null,"Darbuotojo vardas pavardė"]
[null,null,"Darbuotojo vardas pavardė"]
["5.4.2","Pareigybės pavadinimas","Darbuotojo vardas pavardė","val.",null,{"$f":"IFERROR(ROUND(AVERAGE(K115:K119),2),\"0\")","v":"0"},{"$f":"ROUND(E115*F115,2)","v":0},{"$f":"ROUND(G115*$D$7,2)","v":0}]
[null,null,"Darbuotojo vardas pavardė"]
[null,null,"Darbuotojo vardas pavardė"]
[null,null,"Darbuotojo vardas pavardė"]
[null,null,"Darbuotojo vardas pavardė"]
["5.4.3","Pareigybės pavadinimas","Darbuotojo vardas pavardė","val.",null,{"$f":"IFERROR(ROUND(AVERAGE(K120:K124),2),\"0\")","v":"0"},{"$f":"ROUND(E120*F120,2)","v":0},{"$f":"ROUND(G120*$D$7,2)","v":0}]
[null,null,"Darbuotojo vardas pavardė"]
[null,null,"Darbuotojo vardas pavardė"]
[null,null,"Darbuotojo vardas pavardė"]
[null,null,"Darbuotojo vardas pavardė"]
["5.4.4","Pareigybės pavadinimas","Darbuotojo vardas pavardė","val.",null,{"$f":"IFERROR(ROUND(AVERAGE(K125:K129),2),\"0\")","v":"0"},{"$f":"ROUND(E125*F125,2)","v":0},{"$f":"ROUND(G125*$D$7,2)","v":0}]
[null,null,"Darbuotojo vardas pavardė"]
[null,null,"Darbuotojo vardas pavardė"]
[null,null,"Darbuotojo vardas pavardė"]
[null,null,"Darbuotojo vardas pavardė"]
["5.4.5","Pareigybės pavadinimas","Darbuotojo vardas pavardė","val.",null,{"$f":"IFERROR(ROUND(AVERAGE(K130:K134),2),\"0\")","v":"0"},{"$f":"ROUND(E130*F130,2)","v":0},{"$f":"ROUND(G130*$D$7,2)","v":0}]
[null,null,"Darbuotojo vardas pavardė"]
[null,null,"Darbuotojo vardas pavardė"]
[null,null,"Darbuotojo vardas pavardė"]
[null,null,"Darbuotojo vardas pavardė"]
["5.4.6","Pareigybės pavadinimas","Darbuotojo vardas pavardė","val.",null,{"$f":"IFERROR(ROUND(AVERAGE(K135:K139),2),\"0\")","v":"0"},{"$f":"ROUND(E135*F135,2)","v":0},{"$f":"ROUND(G135*$D$7,2)","v":0}]
[null,null,"Darbuotojo vardas pavardė"]
[null,null,"Darbuotojo vardas pavardė"]
[null,null,"Darbuotojo vardas pavardė"]
[null,null,"Darbuotojo vardas pavardė"]
["5.4.7","Pareigybės pavadinimas","Darbuotojo vardas pavardė","val.",null,{"$f":"IFERROR(ROUND(AVERAGE(K140:K144),2),\"0\")","v":"0"},{"$f":"ROUND(E140*F140,2)","v":0},{"$f":"ROUND(G140*$D$7,2)","v":0}]
[null,null,"Darbuotojo vardas pavardė"]
[null,null,"Darbuotojo vardas pavardė"]
[null,null,"Darbuotojo vardas pavardė"]
[null,null,"Darbuotojo vardas pavardė"]
["5.4.8","Pareigybės pavadinimas","Darbuotojo vardas pavardė","val.",null,{"$f":"IFERROR(ROUND(AVERAGE(K145:K149),2),\"0\")","v":"0"},{"$f":"ROUND(E145*F145,2)","v":0},{"$f":"ROUND(G145*$D$7,2)","v":0}]
[null,null,"Darbuotojo vardas pavardė"]
[null,null,"Darbuotojo vardas pavardė"]
[null,null,"Darbuotojo vardas pavardė"]
[null,null,"Darbuotojo vardas pavardė"]
["5.4.9","Pareigybės pavadinimas","Darbuotojo vardas pavardė","val.",null,{"$f":"IFERROR(ROUND(AVERAGE(K150:K154),2),\"0\")","v":"0"},{"$f":"ROUND(E150*F150,2)","v":0},{"$f":"ROUND(G150*$D$7,2)","v":0}]
[null,null,"Darbuotojo vardas pavardė"]
[null,null,"Darbuotojo vardas pavardė"]
[null,null,"Darbuotojo vardas pavardė"]
[null,null,"Darbuotojo vardas pavardė"]
["5.4.10","Pareigybės pavadinimas","Darbuotojo vardas pavardė","val.",null,{"$f":"IFERROR(ROUND(AVERAGE(K155:K159),2),\"0\")","v":"0"},{"$f":"ROUND(E155*F155,2)","v":0},{"$f":"ROUND(G155*$D$7,2)","v":0}]
[null,null,"Darbuotojo vardas pavardė"]
[null,null,"Darbuotojo vardas pavardė"]
[null,null,"Darbuotojo vardas pavardė"]
[null,null,"Darbuotojo vardas pavardė"]
["Iš viso tinkamų finansuoti išlaidų:",null,null,null,null,null,{"$f":"G10","v":0},{"$f":"H10","v":0}]

{"sheet":"8","index":9,"n_rows":160,"n_cols":11,"rows_kept":160,"cut":false,"hidden":false,"merged":[[5,3,5,8],[8,1,8,2],[9,1,9,5],[10,1,10,5],[11,1,11,2],[12,1,12,2],[0,3,0,8],[2,0,2,2],[2,3,2,8],[3,3,3,4],[3,5,3,6],[4,0,4,2],[4,3,4,8],[19,1,19,2],[20,1,20,2],[21,1,21,5],[22,1,22,2],[23,1,23,2],[24,1,24,2],[13,1,13,2],[14,1,14,2],[15,1,15,2],[16,1,16,2],[17,1,17,2],[18,1,18,2],[31,1,31,2],[32,1,32,2],[33,1,33,2],[34,1,34,2],[35,1,35,2],[36,1,36,2],[25,1,25,2],[26,1,26,2],[27,1,27,2],[28,1,28,2],[29,1,29,2],[30,1,30,2],[52,0,58,0],[52,1,58,1],[52,8,58,8],[59,0,65,0],[59,1,65,1],[59,8,65,8],[37,1,37,5],[38,0,44,0],[38,1,44,1],[38,8,44,8],[45,0,51,0],[45,1,51,1],[45,8,51,8],[80,0,86,0],[80,1,86,1],[80,8,86,8],[87,0,93,0],[87,1,93,1],[87,8,93,8],[66,0,72,0],[66,1,72,1],[66,8,72,8],[73,0,79,0],[73,1,79,1],[73,8,79,8],[108,1,108,5],[109,0,113,0],[109,1,113,1],[109,3,113,3],[109,4,113,4],[109,5,113,5],[94,0,100,0],[94,1,100,1],[94,8,100,8],[101,0,107,0],[101,1,107,1],[101,8,107,8],[109,6,113,6],[109,7,113,7],[109,8,113,8],[114,0,118,0],[114,1,118,1],[114,3,118,3],[114,4,118,4],[114,5,118,5],[114,6,118,6],[114,7,118,7],[114,8,118,8],[119,0,123,0],[119,1,123,1],[119,3,123,3],[119,4,123,4],[119,5,123,5],[119,6,123,6],[119,7,123,7],[119,8,123,8],[124,7,128,7],[124,8,128,8],[129,0,133,0],[129,1,133,1],[129,3,133,3],[129,4,133,4],[129,5,133,5],[129,6,133,6],[129,7,133,7],[129,8,133,8],[124,0,128,0],[124,1,128,1],[124,3,128,3],[124,4,128,4],[124,5,128,5],[124,6,128,6],[134,7,138,7],[134,8,138,8],[139,0,143,0],[139,1,143,1],[139,3,143,3],[139,4,143,4],[139,5,143,5],[139,6,143,6],[139,7,143,7],[139,8,143,8],[134,0,138,0],[134,1,138,1],[134,3,138,3],[134,4,138,4],[134,5,138,5],[134,6,138,6],[144,7,148,7],[144,8,148,8],[149,0,153,0],[149,1,153,1],[149,3,153,3],[149,4,153,4],[149,5,153,5],[149,6,153,6],[149,7,153,7],[149,8,153,8],[144,0,148,0],[144,1,148,1],[144,3,148,3],[144,4,148,4],[144,5,148,5],[144,6,148,6],[154,7,158,7],[154,8,158,8],[159,0,159,5],[154,0,158,0],[154,1,158,1],[154,3,158,3],[154,4,158,4],[154,5,158,5],[154,6,158,6]]}
[null,null,"Pasirinkite veiklos tipą:"]
[null,null,"Fizinio rodiklio Nr.:"]
["Fizinio rodiklio pavadinimas:"]
[null,null,"Fizinio rodiklio matavimo vnt.:",null,null,"Fizinio rodiklio vnt. skaičius:"]
["Juridinis asmuo (pareiškėjas, partneris), atsakingas už fizinį rodiklį:"]
[null,null,"Vykdytojo tipas:"]
[null,null,"Finansavimo intensyvumas:",null,null,null,"Pasirinkite biudžeto išlaidų kategoriją:","Visos"]
[]
["Eil. Nr.","Išlaidų kategorijos pavadinimas",null,"Matavimo vnt.","Kiekis","Vieneto kaina be PVM, Eur","Tinkamų finansuoti išlaidų suma be PVM, Eur","Finansavimo suma, Eur","Išlaidų pagrindimo dokumentų pavadinimas, data ir Nr."]
[5,"PROJEKTO VYKDYMAS",null,null,null,null,{"$f":"G11+G22+G38+G109","v":0},{"$f":"H11+H22+H109+H38","v":0}]
["5.1","Produkto sertifikavimo išlaidos",null,null,null,null,{"$f":"SUM(G12:G21)","v":0},{"$f":"SUM(H12:H21)","v":0}]
["5.1.1","Paslaugos pavadinimas",null,null,null,null,{"$f":"ROUND(E12*F12,2)","v":0},{"$f":"ROUND(G12*$D$7,2)","v":0}]
["5.1.2","Paslaugos pavadinimas",null,null,null,null,0,0]
["5.1.3","Paslaugos pavadinimas",null,null,null,null,0,0]
["5.1.4","Paslaugos pavadinimas",null,null,null,null,0,0]
["5.1.5","Paslaugos pavadinimas",null,null,null,null,0,0]
["5.1.6","Paslaugos pavadinimas",null,null,null,null,0,0]
["5.1.7","Paslaugos pavadinimas",null,null,null,null,0,0]
["5.1.8","Paslaugos pavadinimas",null,null,null,null,0,0]
["5.1.9","Paslaugos pavadinimas",null,null,null,null,0,0]
["5.1.10","Paslaugos pavadinimas",null,null,null,null,0,0]
["5.2","Sertifikavimo paslaugų pirkimo išlaidos",null,null,null,null,{"$f":"SUM(G23:G37)","v":0},{"$f":"SUM(H23:H37)","v":0}]
["5.2.1","Išlaidų pavadinimas",null,null,null,null,{"$f":"ROUND(E23*F23,2)","v":0},{"$f":"ROUND(G23*$D$7,2)","v":0}]
["5.2.2","Išlaidų pavadinimas",null,null,null,null,{"$f":"ROUND(E24*F24,2)","v":0},{"$f":"ROUND(G24*$D$7,2)","v":0}]
["5.2.3","Išlaidų pavadinimas",null,null,null,null,{"$f":"ROUND(E25*F25,2)","v":0},{"$f":"ROUND(G25*$D$7,2)","v":0}]
["5.2.4","Išlaidų pavadinimas",null,null,null,null,{"$f":"ROUND(E26*F26,2)","v":0},{"$f":"ROUND(G26*$D$7,2)","v":0}]
["5.2.5","Išlaidų pavadinimas",null,null,null,null,{"$f":"ROUND(E27*F27,2)","v":0},{"$f":"ROUND(G27*$D$7,2)","v":0}]
["5.2.6","Išlaidų pavadinimas",null,null,null,null,0,0]
["5.2.7","Išlaidų pavadinimas",null,null,null,null,0,0]
["5.2.8","Išlaidų pavadinimas",null,null,null,null,0,0]
["5.2.9","Išlaidų pavadinimas",null,null,null,null,0,0]
["5.2.10","Išlaidų pavadinimas",null,null,null,null,0,0]
["5.2.11","Išlaidų pavadinimas",null,null,null,null,0,0]
["5.2.12","Išlaidų pavadinimas",null,null,null,null,0,0]
["5.2.13","Išlaidų pavadinimas",null,null,null,null,0,0]
["5.2.14","Išlaidų pavadinimas",null,null,null,null,0,0]
["5.2.15","Išlaidų pavadinimas",null,null,null,null,0,0]
["5.3","Projektą vykdančio personalo komandiruočių išlaidos",null,null,null,null,{"$f":"SUM(G39,G46,G53,G60,G67,G74,G81,G88,G95,G102)","v":0},{"$f":"SUM(H39,H46,H53,H60,H67,H74,H81,H88,H95,H102)","v":0}]
["5.3.1","Komandiruotės pavadinimas, vieta, trukmė dienomis, vykstančių asmenų skaičius","Iš viso komandiruotei",null,null,null,{"$f":"SUM(G40:G45)","v":0},{"$f":"ROUND(G39*$D$7,2)","v":0}]
[null,null,"Dienpinigiai",null,null,null,{"$f":"ROUND(E40*F40,2)","v":0}]
[null,null,"Gyvenamojo ploto nuoma",null,null,null,0]
[null,null,"Kelionės išlaidos",null,null,null,0]
[null,null,"Dalyvavimo mokestis",null,null,null,0]
[null,null,"Kitos išlaidų pavadinimas",null,null,null,0]
[null,null,"Kitos išlaidų pavadinimas",null,null,null,0]
["5.3.2","Komandiruotės pavadinimas, vieta, trukmė dienomis, vykstančių asmenų skaičius","Iš viso komandiruotei",null,null,null,{"$f":"SUM(G47:G52)","v":0},{"$f":"ROUND(G46*$D$7,2)","v":0}]
[null,null,"Dienpinigiai",null,null,null,{"$f":"ROUND(E47*F47,2)","v":0}]
[null,null,"Gyvenamojo ploto nuoma",null,null,null,0]
[null,null,"Kelionės išlaidos",null,null,null,0]
[null,null,"Dalyvavimo mokestis",null,null,null,0]
[null,null,"Kitos išlaidų pavadinimas",null,null,null,0]
[null,null,"Kitos išlaidų pavadinimas",null,null,null,0]
["5.3.3","Komandiruotės pavadinimas, vieta, trukmė dienomis, vykstančių asmenų skaičius","Iš viso komandiruotei",null,null,null,{"$f":"SUM(G54:G59)","v":0},{"$f":"ROUND(G53*$D$7,2)","v":0}]
[null,null,"Dienpinigiai",null,null,null,{"$f":"ROUND(E54*F54,2)","v":0}]
[null,null,"Gyvenamojo ploto nuoma",null,null,null,0]
[null,null,"Kelionės išlaidos",null,null,null,0]
[null,null,"Dalyvavimo mokestis",null,null,null,0]
[null,null,"Kitos išlaidų pavadinimas",null,null,null,0]
[null,null,"Kitos išlaidų pavadinimas",null,null,null,0]
["5.3.4","Komandiruotės pavadinimas, vieta, trukmė dienomis, vykstančių asmenų skaičius","Iš viso komandiruotei",null,null,null,{"$f":"SUM(G61:G66)","v":0},{"$f":"ROUND(G60*$D$7,2)","v":0}]
[null,null,"Dienpinigiai",null,null,null,{"$f":"ROUND(E61*F61,2)","v":0}]
[null,null,"Gyvenamojo ploto nuoma",null,null,null,0]
[null,null,"Kelionės išlaidos",null,null,null,0]
[null,null,"Dalyvavimo mokestis",null,null,null,0]
[null,null,"Kitos išlaidų pavadinimas",null,null,null,0]
[null,null,"Kitos išlaidų pavadinimas",null,null,null,0]
["5.3.5","Komandiruotės pavadinimas, vieta, trukmė dienomis, vykstančių asmenų skaičius","Iš viso komandiruotei",null,null,null,{"$f":"SUM(G68:G73)","v":0},{"$f":"ROUND(G67*$D$7,2)","v":0}]
[null,null,"Dienpinigiai",null,null,null,{"$f":"ROUND(E68*F68,2)","v":0}]
[null,null,"Gyvenamojo ploto nuoma",null,null,null,0]
[null,null,"Kelionės išlaidos",null,null,null,0]
[null,null,"Dalyvavimo mokestis",null,null,null,0]
[null,null,"Kitos išlaidų pavadinimas",null,null,null,0]
[null,null,"Kitos išlaidų pavadinimas",null,null,null,0]
["5.3.6","Komandiruotės pavadinimas, vieta, trukmė dienomis, vykstančių asmenų skaičius","Iš viso komandiruotei",null,null,null,{"$f":"SUM(G75:G80)","v":0},{"$f":"ROUND(G74*$D$7,2)","v":0}]
[null,null,"Dienpinigiai",null,null,null,{"$f":"ROUND(E75*F75,2)","v":0}]
[null,null,"Gyvenamojo ploto nuoma",null,null,null,0]
[null,null,"Kelionės išlaidos",null,null,null,0]
[null,null,"Dalyvavimo mokestis",null,null,null,0]
[null,null,"Kitos išlaidų pavadinimas",null,null,null,0]
[null,null,"Kitos išlaidų pavadinimas",null,null,null,0]
["5.3.7","Komandiruotės pavadinimas, vieta, trukmė dienomis, vykstančių asmenų skaičius","Iš viso komandiruotei",null,null,null,{"$f":"SUM(G82:G87)","v":0},{"$f":"ROUND(G81*$D$7,2)","v":0}]
[null,null,"Dienpinigiai",null,null,null,{"$f":"ROUND(E82*F82,2)","v":0}]
[null,null,"Gyvenamojo ploto nuoma",null,null,null,0]
[null,null,"Kelionės išlaidos",null,null,null,0]
[null,null,"Dalyvavimo mokestis",null,null,null,0]
[null,null,"Kitos išlaidų pavadinimas",null,null,null,0]
[null,null,"Kitos išlaidų pavadinimas",null,null,null,0]
["5.3.8","Komandiruotės pavadinimas, vieta, trukmė dienomis, vykstančių asmenų skaičius","Iš viso komandiruotei",null,null,null,{"$f":"SUM(G89:G94)","v":0},{"$f":"ROUND(G88*$D$7,2)","v":0}]
[null,null,"Dienpinigiai",null,null,null,{"$f":"ROUND(E89*F89,2)","v":0}]
[null,null,"Gyvenamojo ploto nuoma",null,null,null,0]
[null,null,"Kelionės išlaidos",null,null,null,0]
[null,null,"Dalyvavimo mokestis",null,null,null,0]
[null,null,"Kitos išlaidų pavadinimas",null,null,null,0]
[null,null,"Kitos išlaidų pavadinimas",null,null,null,0]
["5.3.9","Komandiruotės pavadinimas, vieta, trukmė dienomis, vykstančių asmenų skaičius","Iš viso komandiruotei",null,null,null,{"$f":"SUM(G96:G101)","v":0},{"$f":"ROUND(G95*$D$7,2)","v":0}]
[null,null,"Dienpinigiai",null,null,null,{"$f":"ROUND(E96*F96,2)","v":0}]
[null,null,"Gyvenamojo ploto nuoma",null,null,null,0]
[null,null,"Kelionės išlaidos",null,null,null,0]
[null,null,"Dalyvavimo mokestis",null,null,null,0]
[null,null,"Kitos išlaidų pavadinimas",null,null,null,0]
[null,null,"Kitos išlaidų pavadinimas",null,null,null,0]
["5.3.10","Komandiruotės pavadinimas, vieta, trukmė dienomis, vykstančių asmenų skaičius","Iš viso komandiruotei",null,null,null,{"$f":"SUM(G103:G108)","v":0},{"$f":"ROUND(G102*$D$7,2)","v":0}]
[null,null,"Dienpinigiai",null,null,null,{"$f":"ROUND(E103*F103,2)","v":0}]
[null,null,"Gyvenamojo ploto nuoma",null,null,null,0]
[null,null,"Kelionės išlaidos",null,null,null,0]
[null,null,"Dalyvavimo mokestis",null,null,null,0]
[null,null,"Kitos išlaidų pavadinimas",null,null,null,0]
[null,null,"Kitos išlaidų pavadinimas",null,null,null,0]
["5.4","Projektą vykdančio personalo darbo užmokestis ir išlaidos su darbo santykiais susijusiems darbdavio įsipareigojimams",null,null,null,null,{"$f":"SUM(G110:G159)","v":0},{"$f":"SUM(H110:H159)","v":0},null,null,"Faktiškai gaunamas darbo užmokesti už 1 valandą pagal  pastarųjų 6 mėn. vidurkį, Eur"]
["5.4.1","Pareigybės pavadinimas","Darbuotojo vardas pavardė","val.",null,{"$f":"IFERROR(ROUND(AVERAGE(K110:K114),2),\"0\")","v":"0"},{"$f":"ROUND(E110*F110,2)","v":0},{"$f":"ROUND(G110*$D$7,2)","v":0}]
[null,null,"Darbuotojo vardas pavardė"]
[null,null,"Darbuotojo vardas pavardė"]
[null,null,"Darbuotojo vardas pavardė"]
[null,null,"Darbuotojo vardas pavardė"]
["5.4.2","Pareigybės pavadinimas","Darbuotojo vardas pavardė","val.",null,{"$f":"IFERROR(ROUND(AVERAGE(K115:K119),2),\"0\")","v":"0"},{"$f":"ROUND(E115*F115,2)","v":0},{"$f":"ROUND(G115*$D$7,2)","v":0}]
[null,null,"Darbuotojo vardas pavardė"]
[null,null,"Darbuotojo vardas pavardė"]
[null,null,"Darbuotojo vardas pavardė"]
[null,null,"Darbuotojo vardas pavardė"]
["5.4.3","Pareigybės pavadinimas","Darbuotojo vardas pavardė","val.",null,{"$f":"IFERROR(ROUND(AVERAGE(K120:K124),2),\"0\")","v":"0"},{"$f":"ROUND(E120*F120,2)","v":0},{"$f":"ROUND(G120*$D$7,2)","v":0}]
[null,null,"Darbuotojo vardas pavardė"]
[null,null,"Darbuotojo vardas pavardė"]
[null,null,"Darbuotojo vardas pavardė"]
[null,null,"Darbuotojo vardas pavardė"]
["5.4.4","Pareigybės pavadinimas","Darbuotojo vardas pavardė","val.",null,{"$f":"IFERROR(ROUND(AVERAGE(K125:K129),2),\"0\")","v":"0"},{"$f":"ROUND(E125*F125,2)","v":0},{"$f":"ROUND(G125*$D$7,2)","v":0}]
[null,null,"Darbuotojo vardas pavardė"]
[null,null,"Darbuotojo vardas pavardė"]
[null,null,"Darbuotojo vardas pavardė"]
[null,null,"Darbuotojo vardas pavardė"]
["5.4.5","Pareigybės pavadinimas","Darbuotojo vardas pavardė","val.",null,{"$f":"IFERROR(ROUND(AVERAGE(K130:K134),2),\"0\")","v":"0"},{"$f":"ROUND(E130*F130,2)","v":0},{"$f":"ROUND(G130*$D$7,2)","v":0}]
[null,null,"Darbuotojo vardas pavardė"]
[null,null,"Darbuotojo vardas pavardė"]
[null,null,"Darbuotojo vardas pavardė"]
[null,null,"Darbuotojo vardas pavardė"]
["5.4.6","Pareigybės pavadinimas","Darbuotojo vardas pavardė","val.",null,{"$f":"IFERROR(ROUND(AVERAGE(K135:K139),2),\"0\")","v":"0"},{"$f":"ROUND(E135*F135,2)","v":0},{"$f":"ROUND(G135*$D$7,2)","v":0}]
[null,null,"Darbuotojo vardas pavardė"]
[null,null,"Darbuotojo vardas pavardė"]
[null,null,"Darbuotojo vardas pavardė"]
[null,null,"Darbuotojo vardas pavardė"]
["5.4.7","Pareigybės pavadinimas","Darbuotojo vardas pavardė","val.",null,{"$f":"IFERROR(ROUND(AVERAGE(K140:K144),2),\"0\")","v":"0"},{"$f":"ROUND(E140*F140,2)","v":0},{"$f":"ROUND(G140*$D$7,2)","v":0}]
[null,null,"Darbuotojo vardas pavardė"]
[null,null,"Darbuotojo vardas pavardė"]
[null,null,"Darbuotojo vardas pavardė"]
[null,null,"Darbuotojo vardas pavardė"]
["5.4.8","Pareigybės pavadinimas","Darbuotojo vardas pavardė","val.",null,{"$f":"IFERROR(ROUND(AVERAGE(K145:K149),2),\"0\")","v":"0"},{"$f":"ROUND(E145*F145,2)","v":0},{"$f":"ROUND(G145*$D$7,2)","v":0}]
[null,null,"Darbuotojo vardas pavardė"]
[null,null,"Darbuotojo vardas pavardė"]
[null,null,"Darbuotojo vardas pavardė"]
[null,null,"Darbuotojo vardas pavardė"]
["5.4.9","Pareigybės pavadinimas","Darbuotojo vardas pavardė","val.",null,{"$f":"IFERROR(ROUND(AVERAGE(K150:K154),2),\"0\")","v":"0"},{"$f":"ROUND(E150*F150,2)","v":0},{"$f":"ROUND(G150*$D$7,2)","v":0}]
[null,null,"Darbuotojo vardas pavardė"]
[null,null,"Darbuotojo vardas pavardė"]
[null,null,"Darbuotojo vardas pavardė"]
[null,null,"Darbuotojo vardas pavardė"]
["5.4.10","Pareigybės pavadinimas","Darbuotojo vardas pavardė","val.",null,{"$f":"IFERROR(ROUND(AVERAGE(K155:K159),2),\"0\")","v":"0"},{"$f":"ROUND(E155*F155,2)","v":0},{"$f":"ROUND(G155*$D$7,2)","v":0}]
[null,null,"Darbuotojo vardas pavardė"]
[null,null,"Darbuotojo vardas pavardė"]
[null,null,"Darbuotojo vardas pavardė"]
[null,null,"Darbuotojo vardas pavardė"]
["Iš viso tinkamų finansuoti išlaidų:",null,null,null,null,null,{"$f":"G10","v":0},{"$f":"H10","v":0}]